Workbook

Sheet Main
J1: Recycle operations D | K1: 0 | M1: -9597.461426
AC2: COMPLETE
G3: =J3 -> Exergy Investment | H3: =SUM(K4:K52) -> -3365606.078 | J3: Exergy Investment | L3: Energy Invest. | M3: Exergy Use | O3: Exergy Loss | Q3: Type | AC3: WCS LP/MP | AD3: -539968.6437 | AE3: -1456043.379
G4: =M3 -> Exergy Use | H4: =SUM(N4:N52) -> 1692205.042 | J4: C-LP/MP | K4: -1276813.887 | L4: -2455411.32 | M4: Liquefaction_Load | N4: 168070.9304 | O4: ORS | P4: 36997.23002 | Q4: Other (Warm) | R4: Heat Exchanger | S4: =SUM($P$4:$P$52*($Q$4:$Q$52=R4)) -> 625684.0538 | AC4: WCS MP/HP | AD4: -810352.8163
A5: Reference warm temperature for exergy | D5: 300 | G5: =O3 -> Exergy Loss | H5: =SUM(P4:P52) -> 1673401.036 | J5: C-MP/HP | K5: -2071792.618 | L5: -3699629.676 | M5: TS | N5: 164560.4351 | O5: Adsorbers | P5: 7810.5732 | Q5: Other (Cold Box) | R5: Turbines | S5: =SUM($P$4:$P$52*($Q$4:$Q$52=R5)) -> 712959.8533 | AC5: WCS VLP/LP | AD5: -94751.29675
A6: Reference cold temperature for exergy | D6: 4.5 | G6: Exergy Balance | H6: =H3+H4+H5 -> -1.140870154e-08 | J6: LevelCompensation | K6: -16999.57305 | L6: -13438.73637 | M6: Refrigeration_Load | N6: 1359573.676 | O6: VLV-JT | P6: 104502.0595 | Q6: Other (Cold Box) | R6: Other (Cold Box) | S6: =SUM($P$4:$P$52*($Q$4:$Q$52=R6)) -> 249268.5797 | AC6: Cold compressors | AD6: -10970.62225
G7: Relative difference | H7: =1-ABS((H5+H4)/H3) -> 3.441691376e-15 | O7: HX-01 | P7: 83014.04746 | Q7: Heat Exchanger | R7: Other (Warm) | S7: =SUM($P$4:$P$52*($Q$4:$Q$52=R7)) -> 85488.54908 | AC7: Nitrogen
A8: Specific W/W | B8: =(_TRef-_TRefCold)/_TRefCold -> 65.66666667 | O8: HX-02 | P8: 18440.52097 | Q8: Heat Exchanger
A9: Carnot efficiency | B9: =1/_WpW -> 0.0152284264 | O9: HX-03 | P9: 89092.96269 | Q9: Heat Exchanger | AC9: Comp bypass | AD9: 50841.14921 | AE9: 1456043.379
O10: HX-04 | P10: 28980.84012 | Q10: Heat Exchanger | AC10: ORS | AD10: 14470.9103
D11: Group all elements | O11: HX-05 | P11: 3664.544753 | Q11: Heat Exchanger | AC11: Piping | AD11: 15786.2082
A12: Heat exchanger | D12: NO | O12: HX-06 | P12: 31911.68039 | Q12: Heat Exchanger | AC12: Adsorbers | AD12: 3032.463305
A13: Compressor | D13: NO | O13: HX-07 | P13: 4381.995187 | Q13: Heat Exchanger | AC13: Cold compressors | AD13: 88290.46434
A14: Valves | D14: YES | G14: ="Useful power @ " & _TRefCold&" K" -> Useful power @ 4.5 K | O14: HX-08 | P14: 13617.2155 | Q14: Heat Exchanger | AC14: HX-01 | AD14: 42895.28971
A15: Mixer | D15: YES | G15: =_ExUse/_WpW -> 25769.61993 | O15: HX-09 | P15: 27367.86913 | Q15: Heat Exchanger | AC15: HX-02 | AD15: 9169.020122
A16: Piping | D16: YES | G16: Ideal cycle efficiency | H16: Real cycle efficiency | O16: HX-10 | P16: 176745.6322 | Q16: Heat Exchanger | AC16: HX-03 | AD16: 30415.29884
A17: Turbines | D17: NO | G17: =-_ExInv/_UsefulPower -> 130.6036367 | H17: =-SUM(L4:L52)/_UsefulPower -> 239.3702255 | O17: HX-12 | P17: 143311.6852 | Q17: Heat Exchanger | AC17: HX-04 | AD17: 8614.470167
A18: Add bearing losses to turbine | D18: NO | G18: Ideal Carnot efficiency | H18: Real Carnot efficiency | O18: HX-13 | P18: 5155.060219 | Q18: Heat Exchanger | AC18: HX-05 | AD18: 972.9775071
A19: Add inlet Dp to turbine | D19: NO | G19: =-_ExUse/_ExInv -> 0.5027935542 | H19: =_WpW/_Eff_WW_Real -> 0.2743309722 | O19: Bearing Feed gas | P19: 136200.7798 | Q19: Turbines | AC19: HX-06 | AD19: 11304.53974
A20: Group bearing & inlet Dp if separated | D20: NO | O20: Turbine bearing losses | P20: 11897.64476 | Q20: Turbines | AC20: HX-07 | AD20: 2605.85726
O21: Turbine inlet Dp losses | P21: 19747.10518 | Q21: Turbines | AC21: HX-08 | AD21: 25647.1912
A22: Root Path | B22: D:\Users\guillaume.delautre\Desktop\DTC Cryo\ST!TCC_MMM_25kW\ | O22: T-1 | P22: 66720.71929 | Q22: Turbines | AC22: HX-09 | AD22: 10271.09321
A23: Hysys case | B23: ST!TCC_MMM_25kW.hsc | O23: T-2 | P23: 74310.25019 | Q23: Turbines | AC23: HX-10 | AD23: 7961.952594
O24: T-3 | P24: 127301.9597 | Q24: Turbines | AC24: HX-11 | AD24: 13577.75774
O25: T-4 | P25: 72432.44209 | Q25: Turbines | AC25: HX-12 | AD25: 6399.024735
O26: T-5 | P26: 128716.049 | Q26: Turbines | AC26: HX-13 | AD26: 1810.286746
O27: T-6 | P27: 75632.90336 | Q27: Turbines | AC27: T-1 | AD27: 37948.68611
O28: Valves | P28: 136837.5652 | Q28: Other (Cold Box) | AC28: T-2 | AD28: 27540.22172
O29: Mixer | P29: 118.3817781 | Q29: Other (Cold Box) | AC29: T-3 | AD29: 63336.21667
A30: Stream Summary units | G30: Total # of turbines | O30: Piping | P30: 48491.31905 | Q30: Other (Warm) | AC30: T-4 | AD30: 80371.27764
A31: Temperature | B31: =IF(AUX!AB1,"≠ Import","") ->  | C31: K | G31: =COUNTA(Turbines!A2:A1048576) -> 6 | AC31: T-5 | AD31: 77626.72257
A32: Delta Temperature | B32: =IF(AUX!AB2,"≠ Import","") ->  | C32: K | G32: Total turbine power | AC32: T-6 | AD32: 45200.97382
A33: Pressure | B33: =IF(AUX!AB3,"≠ Import","") ->  | C33: bar | G33: =SUM(Turbines!C2:C1048576) -> 128781.7611 | AC33: Expander gas losses | AD33: 32799.96191
A34: Delta pressure | B34: =IF(AUX!AB4,"≠ Import","") ->  | C34: mbar | G34: Total UA in LNG | AC34: Expanders upstream valves | AD34: 10246.83646
A35: Duty | B35: =IF(AUX!AB5,"≠ Import","") ->  | C35: W* | G35: =SUM(LNG!B2:B1048576) -> 1813152.594 | AC35: JT valve | AD35: 6477.251105
A36: Mass Flow | B36: =IF(AUX!AB6,"≠ Import","") ->  | C36: g/s | AC36: Mixer & Valves | AD36: 467.6017582
A37: Mass Enthalpy | B37: =IF(AUX!AB7,"≠ Import","") ->  | C37: kJ/kg | G37: Hysys version | AC37: Subcooler | AD37: 10129.90752
A38: Mass Entropy | B38: =IF(AUX!AB8,"≠ Import","") ->  | C38: kJ/kg-K | G38: Aspen HYSYS Version 8.4 (30.0.0.8433) | AC38: LHe Dewar heat inleaks | AD38: 6718.181818
A39: Mass Heat capacity | B39: =IF(AUX!AB9,"≠ Import","") ->  | C39: kJ/kg-K | AC39: 2K Loop | AD39: 574295.3391
A40: Mass Density | B40: =IF(AUX!AB10,"≠ Import","") ->  | C40: kg/m3 | AC40: RF Coupler | AD40: 58517.64651
A41: Molar Flow | B41: =IF(AUX!AB11,"≠ Import","") ->  | C41: Nm3/h* | AC41: Thermal Shields | AD41: 80300.5994
A42: Molar Enthalpy | B42: =IF(AUX!AB12,"≠ Import","") ->  | C42: J/mol*
A43: Molar Entropy | B43: =IF(AUX!AB13,"≠ Import","") ->  | C43: kJ/kgmole-C
A44: Molar Heat capacity | B44: =IF(AUX!AB14,"≠ Import","") ->  | C44: kJ/kgmole-C
A45: Molar Density | B45: =IF(AUX!AB15,"≠ Import","") ->  | C45: kgmole/m3
A46: Volume Flow | B46: =IF(AUX!AB16,"≠ Import","") ->  | C46: m3/h
A47: Dynamic Viscosity | B47: =IF(AUX!AB17,"≠ Import","") ->  | C47: Pa-s
A48: Kinematic viscosity | B48: =IF(AUX!AB18,"≠ Import","") ->  | C48: m²/s*
A49: Thermal conductivity | B49: =IF(AUX!AB19,"≠ Import","") ->  | C49: W/m-K

Sheet ExergyBalance
Q1: Turbine Bearing stream | R1: Turbine Bearings | S1: Turbine bearing +losses return stream | T1: From Turbines 2
A2: Special Equipments | E2: Useful exergy destruction | H2: Heat Exchanger | J2: Compressors | Q2: Turbines | U2: Valves | W2: Mixer | Y2: Piping | AA2: Additional circuits | AE2: Dewar Level Compensation
A3: Name | B3: ID | C3: Type | D3: Group | E3: Liquefaction | J3: Name | K3: ID | L3: Exergetic efficiency | M3: Cooler / El. Energy | N3: Isothermal Compression | O3: In Coldbox | P3: Group | Q3: Name | R3: ID | S3: Gas loss stream | T3: Inlet valve | AA3: Name | AB3: ID IN | AC3: ID OUT | AD3: Production efficiency | AE3: Name | AF3: Compensation Flow | AG3: Cycle Discharge | AH3: Cold Box Cold End Flow | AI3: Compressor(s) back to HP
B4: ORS | C4: =INDEX(_cT_Obj_Type,MATCH(B4,_cT_Obj,0)) -> coolerop | E4: Name | F4: ID | G4: Level Compens. Flow | I4: HX-01 | K4: C-LP/MP | L4: 0.52 | M4: MP Cooler | N4: YES | O4: NO | R4: T-1 | S4: T1_Loss | T4: VLV-T1 | V4: VLV-Dewar | X4: MIX-100 | Z4: PIPE-HP | AF4: LevelCompensation | AG4: To Buffer | AH4: 13MPa | AI4: C-LP/MP
A5: Adsorbers | B5: Ads80K | C5: heaterop | D5: 1 | F5: Liquefaction_Load | I5: HX-02 | K5: C-MP/HP | L5: 0.56 | M5: HP Cooler | N5: YES | O5: NO | R5: T-2 | S5: T2_Loss | T5: VLV-T2 | V5: VLV-HP/LP | X5: MIX-101 | Z5: PIPE-LP | AI5: C-MP/HP
B6: Ads20K | C6: heaterop | D6: 1 | I6: HX-03 | R6: T-3 | S6: T3_Loss | T6: VLV-T3 | X6: MIX-102 | Z6: PIPE-MP
B7: VLV-JT | C7: valveop | I7: HX-04 | R7: T-4 | S7: T4_Loss | T7: VLV-T4 | X7: MIX-103-2-3
I8: HX-05 | R8: T-5 | S8: T5_Loss | T8: VLV-T5 | X8: MIX-103-8
E9: Other loads | I9: HX-06 | R9: T-6 | S9: T6_Loss | T9: VLV-T6 | X9: MIX-105
E10: Name | F10: ID | G10: Group | I10: HX-07 | X10: MIX-108
F11: TS | I11: HX-08
F12: Refrigeration_Load | I12: HX-09
I13: HX-10
I14: HX-12
I15: HX-13
C36: =INDEX(_cT_Obj_Type,MATCH(B36,_cT_Obj,0)) -> 
C68: =INDEX(_cT_Obj_Type,MATCH(B68,_cT_Obj,0)) -> 
C100: =INDEX(_cT_Obj_Type,MATCH(B100,_cT_Obj,0)) -> 

Sheet ExergyData
A1: Object type | B1: Name | C1: Ex IN-OUT | D1: Materialstreams | I1: Energystreams | K1: LNG | M1: Turbine | O1: Compressor | Q1: Pipe | S1: Cooler | U1: Heater | W1: Valve | Y1: Mixer | AA1: Tank | AC1: SystemInlet | AE1: SystemOutlet
A2: alextnop.turbdesign | B2: PreDesign-T5 | C2: 0 | D2: 1 | E2: -2075626.184 | F2: 1.1595 | G2: 4.502860295 | H2: 6016.384737 | I2: Q_Liq | J2: 39051.18192 | K2: HX-01 | L2: 83014.04746 | M2: T-1 | N2: 66720.71929 | O2: C-LP/MP | P2: -2048384.464 | Q2: PIPE-HP | R2: 4920.396959 | S2: HP Cooler | T2: 1117785.456 | U2: Ads20K | V2: 2214.706374 | W2: VLV-Dewar | X2: 6860.706793 | Y2: MIX-100 | Z2: 0 | AA2: Dewar | AB2: 1359573.676 | AC2: From Buffer | AD2: 0 | AE2: 1 | AF2: 2075626.184
A3: alextnop.turbdesign | B3: PreDesign-T4 | C3: 0 | D3: 2 | E3: -182652.2702 | F3: 0.02500523947 | G3: 300 | H3: 29542.23261 | I3: Q-100 | J3: 3655478.314 | K3: HX-02 | L3: 18440.52097 | M3: T-2 | N3: 74310.25019 | O3: C-MP/HP | P3: -3189578.074 | Q3: PIPE-LP | R3: 34463.91336 | S3: MP Cooler | T3: 771570.5777 | U3: Ads80K | V3: 5595.866826 | W3: VLV-HP/LP | X3: 129976.8584 | Y3: MIX-101 | Z3: -0.1535814879 | AC3: LevelCompensation | AD3: 8449.081007 | AE3: To Buffer | AF3: 25448.65406
A4: alextnop.turbdesign | B4: PreDesign-T6 | C4: 0 | D4: 0HPa | E4: -12095012.66 | F4: 2.210700289 | G4: 300 | H4: 23450.90075 | I4: Q-101 | J4: 3682893.589 | K4: HX-03 | L4: 89092.96269 | M4: T-3 | N4: 127301.9597 | Q4: PIPE-MP | R4: 9107.008731 | S4: ORS | T4: 36997.23002 | U4: E-106 | V4: 50178.2586 | W4: VLV-JT | X4: 104502.0595 | Y4: MIX-102 | Z4: 42.52656882
A5: alextnop.turbdesign | B5: PreDesign-T3 | C5: 0 | D5: 0HPb | E5: -12090092.27 | F5: 2.210700289 | G5: 299.995644 | H5: 23443.48169 | I5: Q-102 | J5: 2323129.031 | K5: HX-04 | L5: 28980.84012 | M5: T-4 | N5: 72432.44209 | U5: Liquefaction_Load | V5: 168070.9304 | W5: VLV-T1 | X5: 1766.694958 | Y5: MIX-103-2-3 | Z5: -0.1361513436
A6: alextnop.turbdesign | B6: PreDesign-T2 | C6: 0 | D6: 0HPc | E6: -12908569.96 | F6: 2.360360756 | G6: 299.995644 | H6: 23443.48169 | I6: Q-115 | J6: 2342629.915 | K6: HX-05 | L6: 3664.544753 | M6: T-5 | N6: 128716.049 | U6: Refrigeration_Load | V6: 1359573.676 | W6: VLV-T2 | X6: 2951.815328 | Y6: MIX-103-8 | Z6: -19.77566291
A7: alextnop.turbdesign | B7: PreDesign-T1 | C7: 0 | D7: 0HPd | E7: -12871572.73 | F7: 2.360360756 | G7: 300 | H7: 23391.84747 | I7: Q-117 | J7: 1851.253744 | K7: HX-06 | L7: 31911.68039 | M7: T-6 | N7: 75632.90336 | U7: TS | V7: 164560.4351 | W7: VLV-T3 | X7: 1295.534859 | Y7: MIX-105 | Z7: 10.69718153
A8: alextnop.turbdesign | B8: PreDesignT6 | C8: 0 | D8: 0HPe | E8: -11753787.27 | F8: 2.360360756 | G8: 598.3489415 | H8: 26975.61159 | I8: Q-DewarLoad | J8: 20750 | K8: HX-07 | L8: 4381.995187 | W8: VLV-T4 | X8: 1376.452059 | Y8: MIX-108 | Z8: 85.22342352
A9: compressor | B9: C-LP/MP | C9: -2048384.464 | D9: 0LPa | E9: -8286423.742 | F9: 1.139148104 | G9: 297.1049822 | H9: 29391.07666 | I9: Q-HL_Ads20K | J9: 5 | K9: HX-08 | L9: 13617.2155 | W9: VLV-T5 | X9: 4911.872275 | Y9: MIX-Turb | Z9: 97920.16594
A10: compressor | B10: C-MP/HP | C10: -3189578.074 | D10: 0LPd | E10: -8320887.655 | F10: 1.139148104 | G10: 297.1082325 | H10: 29491.9237 | I10: Q-HL_Ads80K | J10: 10 | K10: HX-09 | L10: 27367.86913 | W10: VLV-T6 | X10: 7444.735697
A11: coolerop | B11: ORS | C11: 36997.23002 | D11: 0LPh | E11: -9580215.02 | F11: 1.311550468 | G11: 297.3822581 | H11: 29496.71052 | I11: Q-HL_HP | J11: 0 | K11: HX-10 | L11: 176745.6322
A12: coolerop | B12: HP Cooler | C12: 1117785.456 | D12: 0MPa | E12: -7531830.556 | F12: 1.311550468 | G12: 641.1460134 | H12: 30244.54157 | I12: Q-HL_LP | J12: 0 | K12: HX-12 | L12: 143311.6852
A13: coolerop | B13: MP Cooler | C13: 771570.5777 | D13: 0MPb | E13: -8303401.133 | F13: 1.311550468 | G13: 300 | H13: 26301.22285 | I13: Q-HL_MP | J13: 0 | K13: HX-13 | L13: 5155.060219
A14: expandop | B14: T-6 | C14: 75632.90336 | D14: 0MPc | E14: -6630814.676 | F14: 1.048810289 | G14: 297.1049821 | H14: 26222.00664 | I14: Q-HL-Dewar | J14: 250
A15: expandop | B15: T-3 | C15: 127301.9597 | D15: 0MPd | E15: -6639921.684 | F15: 1.048810289 | G15: 297.1093401 | H15: 26250.95058 | I15: Q-ORS | J15: 434.6172065
A16: expandop | B16: T-4 | C16: 72432.44209 | D16: 0MPe | E16: -14943365.34 | F16: 2.360360756 | G16: 298.7155545 | H16: 26278.94476 | I16: Q-Refrigeration | J16: 20500
A17: expandop | B17: T-5 | C17: 128716.049 | D17: 11LPa | E17: -3432189.133 | F17: 1.139148104 | G17: 8.110373696 | H17: 10173.96722 | I17: Q-T1 | J17: 40129.25014
A18: expandop | B18: T-1 | C18: 66720.71929 | D18: 12HPa | E18: -615055.9024 | F18: 1.1603 | G18: 5.09750871 | H18: 1769.551462 | I18: Q-T2 | J18: 26761.41495
A19: expandop | B19: T-2 | C19: 74310.25019 | D19: 12HPb | E19: -622500.6381 | F19: 1.1603 | G19: 5.111153887 | H19: 1790.93885 | I19: Q-T3 | J19: 35034.01276
A20: heaterop | B20: TS | C20: 164560.4351 | D20: 12LPa | E20: -2167696.662 | F20: 1.139148104 | G20: 4.6 | H20: 6397.835816 | I20: Q-T4 | J20: 12504.24726
A21: heaterop | B21: E-106 | C21: 50178.2586 | D21: 12MPa | E21: -698133.5415 | F21: 1.1603 | G21: 4.812281781 | H21: 1999.310862 | I21: Q-T5 | J21: 11252.14649
A22: heaterop | B22: Ads80K | C22: 5595.866826 | D22: 12MPb | E22: -697652.1945 | F22: 1.1595 | G22: 4.812281781 | H22: 1999.310862 | I22: Q-T6 | J22: 3100.689522
A23: heaterop | B23: Ads20K | C23: 2214.706374 | D23: 13LPa | E23: -716052.5079 | F23: 1.1595 | G23: 4.500417629 | H23: 2048.226978 | I23: Q-TS | J23: 26250
A24: heaterop | B24: Refrigeration_Load | C24: 1359573.676 | D24: 13LPb | E24: -2061044.845 | F24: 1.134494761 | G24: 4.502860295 | H24: 6106.413872
A25: heaterop | B25: Liquefaction_Load | C25: 168070.9304 | D25: 13LPc | E25: -2069579.149 | F25: 1.139148104 | G25: 4.502854709 | H25: 6106.649343
A26: Inlet stream | B26: From Buffer | C26: 0 | D26: 13LPd | E26: -2076439.856 | F26: 1.139148104 | G26: 4.485615123 | H26: 6126.724891
A27: Inlet stream | B27: LevelCompensation | C27: 8449.081007 | D27: 13MPa | E27: -611550.4484 | F27: 1.1595 | G27: 4.58619877 | H27: 1747.804211
A28: lngop | B28: HX-13 | C28: 5155.060219 | D28: 1HPa | E28: -11450267.21 | F28: 2.210700289 | G28: 151.5105251 | H28: 19908.23285
A29: lngop | B29: HX-12 | C29: 143311.6852 | D29: 1HPb | E29: -9570117.73 | F29: 1.847700289 | G29: 151.5105251 | H29: 19908.23285
A30: lngop | B30: HX-01 | C30: 83014.04746 | D30: 1LPa | E30: -7897141.473 | F30: 1.139148104 | G30: 147.0302368 | H30: 25654.42082
A31: lngop | B31: HX-06 | C31: 31911.68039 | D31: 1MPa | E31: -6292337.442 | F31: 1.048810289 | G31: 147.0302778 | H31: 22548.63362
A32: lngop | B32: HX-05 | C32: 3664.544753 | D32: 2HPa | E32: -9345490.879 | F32: 1.847700289 | G32: 130.7109109 | H32: 19142.39975
A33: lngop | B33: HX-02 | C33: 18440.52097 | D33: 2LPa | E33: -7769119.018 | F33: 1.139148104 | G33: 129.4336612 | H33: 24975.2149
A34: lngop | B34: HX-04 | C34: 28980.84012 | D34: 2MPa | E34: -6177292.525 | F34: 1.048810289 | G34: 129.4336331 | H34: 21878.31318
A35: lngop | B35: HX-07 | C35: 4381.995187 | D35: 3HPa | E35: -7903087.549 | F35: 1.847700289 | G35: 63.50475281 | H35: 15369.64483
A36: lngop | B36: HX-08 | C36: 13617.2155 | D36: 3LPa | E36: -6812589.4 | F36: 1.139148104 | G36: 61.16375413 | H36: 20994.14551
A37: lngop | B37: HX-09 | C37: 27367.86913 | D37: 3MPa | E37: -5320016.325 | F37: 1.048810289 | G37: 61.1637541 | H37: 17969.93875
A38: lngop | B38: HX-03 | C38: 89092.96269 | D38: 4HPa | E38: -7338620.372 | F38: 1.847700289 | G38: 50.09514642 | H38: 14114.43895
A39: lngop | B39: HX-10 | C39: 176745.6322 | D39: 4HPb | E39: -7344216.239 | F39: 1.847700289 | G39: 50.09842728 | H39: 14124.55219
A40: mixerop | B40: MIX-100 | C40: 0 | D40: 4LPa | E40: -6501758.442 | F40: 1.139148104 | G40: 49.638 | H40: 19884.8278
A41: mixerop | B41: MIX-Turb | C41: 97920.16594 | D41: 4MPa | E41: -3295844.192 | F41: 0.6862102886 | G41: 49.638 | H41: 16871.03066
A42: mixerop | B42: MIX-105 | C42: 10.69718153 | D42: 4MPb | E42: -5037399.267 | F42: 1.048810289 | G42: 49.638 | H42: 16871.03022
A43: mixerop | B43: MIX-108 | C43: 85.22342352 | D43: 5HPa | E43: -7344862.684 | F43: 1.847700289 | G43: 50.08693953 | H43: 14125.5053
A44: mixerop | B44: MIX-102 | C44: 42.52656882 | D44: 5HPb | E44: -7053407.731 | F44: 1.774380824 | G44: 50.08693953 | H44: 14125.5053
A45: mixerop | B45: MIX-103-2-3 | C45: -0.1361513436 | D45: 5LPa | E45: -6500638.864 | F45: 1.139148104 | G45: 49.62487732 | H45: 19881.32465
A46: mixerop | B46: MIX-103-8 | C46: -19.77566291 | D46: 5MPa | E46: -3293945.67 | F46: 0.6862102886 | G46: 49.62487683 | H46: 16861.5873
A47: mixerop | B47: MIX-101 | C47: -0.1535814879 | D47: 6HPa | E47: -6233843.522 | F47: 1.774380824 | G47: 35.9 | H47: 12330.8906
A48: Outlet stream | B48: To Buffer | C48: -25448.65406 | D48: 6HPb | E48: -5028268.873 | F48: 1.43123 | G48: 35.9 | H48: 12330.8906
A49: Outlet stream | B49: 1 | C49: -2075626.184 | D49: 6LPa | E49: -5965921.201 | F49: 1.139148104 | G49: 35.36108098 | H49: 18069.08247
A50: pipeseg | B50: PIPE-LP | C50: 34463.91336 | D50: 6MPa | E50: -2977187.443 | F50: 0.6862102886 | G50: 35.36108089 | H50: 15073.18031
A51: pipeseg | B51: PIPE-HP | C51: 4920.396959 | D51: 7HPa | E51: -4961935.505 | F51: 1.43123 | G51: 34.75684122 | H51: 12155.49863
A52: pipeseg | B52: PIPE-MP | C52: 9107.008731 | D52: 7LPa | E52: -5922767.421 | F52: 1.139148104 | G52: 34.42079767 | H52: 17926.46332
A53: tankop | B53: Dewar | C53: 1359573.676 | D53: 7MPa | E53: -1160575.848 | F53: 0.27 | G53: 34.42079767 | H53: 14922.73964
A54: valveop | B54: VLV-JT | C54: 104502.0595 | D54: 7MPb | E54: -2949625.86 | F54: 0.6862102886 | G54: 34.42079767 | H54: 14922.73774
A55: valveop | B55: VLV-Dewar | C55: 6860.706793 | D55: 8HPa | E55: -4484772.259 | F55: 1.43123 | G55: 27.81231024 | H55: 10915.21426
A56: valveop | B56: VLV-T6 | C56: 7444.735697 | D56: 8HPb | E56: -4486986.965 | F56: 1.43123 | G56: 27.81201581 | H56: 10920.38395
A57: valveop | B57: VLV-HP/LP | C57: 129976.8584 | D57: 8HPc | E57: -3639643.885 | F57: 1.16095 | G57: 27.81201581 | H57: 10920.38395
A58: valveop | B58: VLV-T3 | C58: 1295.534859 | D58: 8LPa | E58: -5527254.809 | F58: 1.139148104 | G58: 26.90773219 | H58: 16638.3461
A59: valveop | B59: VLV-T4 | C59: 1376.452059 | D59: 8MPa | E59: -1065307.999 | F59: 0.27 | G59: 26.90773141 | H59: 13613.52992
A60: valveop | B60: VLV-T5 | C60: 4911.872275 | D60: 9HPa | E60: -2922961.383 | F60: 1.16095 | G60: 19.04037229 | H60: 8690.876519
A61: valveop | B61: VLV-T1 | C61: 1766.694958 | D61: 9LPa | E61: -4928314.741 | F61: 1.139148104 | G61: 18.85113274 | H61: 14744.77265
A62: valveop | B62: VLV-T2 | C62: 2951.815328 | D62: From Buffer | E62: 0 | F62: 0 | G62: 300 | H62: 29542.23261
D63: From TS | E63: -1370135.084 | F63: 0.3431508236 | G63: 50.1 | H63: 14184.40439
D64: From Turbines | E64: -509272.4057 | F64: 0.07659 | G64: 292.3317294 | H64: 27227.521
D65: From Turbines 2 | E65: -559450.6643 | F65: 0.07659 | G65: 297.1082325 | H65: 29491.93813
D66: HP-LPa | E66: -387236.8747 | F66: 0.07080712468 | G66: 299.995644 | H66: 23443.48169
D67: HP-LPb | E67: -517213.7331 | F67: 0.07080712468 | G67: 301.1627568 | H67: 29562.30372
D68: LevelCompensation | E68: -8449.081007 | F68: 0.004653343054 | G68: 4.501489978 | H68: 6103.009634
D69: LHe | E69: -14581.33978 | F69: 0.02500523947 | G69: 4.502860295 | H69: 1931.737549
D70: T1_Loss | E70: -1073.629143 | F70: 0.0002 | G70: 130.7109109 | H70: 20168.6384
D71: T1Ha | E71: -1880149.48 | F71: 0.363 | G71: 151.5105251 | H71: 19908.23285
D72: T1Hb | E72: -1881916.175 | F72: 0.363 | G72: 151.5196816 | H72: 19924.45595
D73: T1La | E73: -1948636.894 | F73: 0.363 | G73: 130.7109109 | H73: 20168.6384
D74: T1Lb | E74: -1947563.265 | F74: 0.3628 | G74: 130.7109109 | H74: 20168.6384
D75: T2_Loss | E75: -960.5930563 | F75: 0.0002 | G75: 49.638 | H75: 16871.03066
D76: T2Ha | E76: -1665253.739 | F76: 0.3628 | G76: 63.50475281 | H76: 16407.04085
D77: T2Hb | E77: -1668205.554 | F77: 0.3628 | G77: 63.51042221 | H77: 16434.16153
D78: T2La | E78: -1742515.804 | F78: 0.3628 | G78: 49.638 | H78: 16871.03066
D79: T2Lb | E79: -1741555.211 | F79: 0.3626 | G79: 49.638 | H79: 16871.03066
D80: T3_Loss | E80: -1117.591409 | F80: 0.00026 | G80: 34.42079767 | H80: 14922.73774
D81: T3Ha | E81: -291454.9537 | F81: 0.07331946493 | G81: 50.08693953 | H81: 14125.5053
D82: T3Hb | E82: -292750.4885 | F82: 0.07331946493 | G82: 50.1 | H82: 14184.40439
D83: T3Hc | E83: -1662865.797 | F83: 0.4164702886 | G83: 50.1 | H83: 14184.24611
D84: T3La | E84: -1790167.757 | F84: 0.4164702886 | G84: 34.42079767 | H84: 14922.73774
D85: T3Lb | E85: -1789050.165 | F85: 0.4162102886 | G85: 34.42079767 | H85: 14922.73774
D86: T4_Loss | E86: -954.2790915 | F86: 0.00028 | G86: 18.85113274 | H86: 11676.44738
D87: T4Ha | E87: -847343.0804 | F87: 0.27028 | G87: 27.81201581 | H87: 10920.38395
D88: T4Hb | E88: -848719.5324 | F88: 0.27028 | G88: 27.80896035 | H88: 10937.35959
D89: T4La | E89: -921151.9745 | F89: 0.27028 | G89: 18.85113274 | H89: 11676.44738
D90: T4Lb | E90: -920197.6954 | F90: 0.27 | G90: 18.85113274 | H90: 11676.44738
D91: T5_Loss | E91: -972.6397027 | F91: 0.00065 | G91: 8.210319536 | H91: 5064.984235
D92: T5Ha | E92: -1603581.406 | F92: 1.16095 | G92: 10.47905772 | H92: 4713.617467
D93: T5Hb | E93: -1608493.278 | F93: 1.16095 | G93: 10.4752114 | H93: 4727.720493
D94: T5La | E94: -1737209.327 | F94: 1.16095 | G94: 8.210319536 | H94: 5064.984235
D95: T5Lb | E95: -1736236.688 | F95: 1.1603 | G95: 8.210319615 | H95: 5064.984235
D96: T6_Loss | E96: -481.3469216 | F96: 0.0008 | G96: 4.812281781 | H96: 1999.310862
D97: To Buffer | E97: -25448.65406 | F97: 0.004653343054 | G97: 299.995644 | H97: 23443.48169
D98: To TS | E98: -1205574.649 | F98: 0.3431508236 | G98: 35.9 | H98: 12330.8906
D99: Turbine Bearings | E99: -405792.1604 | F99: 0.0742 | G99: 299.995644 | H99: 23443.48169

Sheet TS Setup
A1: Trace isobars for | C1: Linewidth | AZ1: 4 | BI1: TURBINES | BJ1: Linewidth | CY1: COMPRESSORS | CZ1: Linewidth | DU1: LNG - Heat Exchanger | DV1: Entropy value for horizontal position | DY1: 32000 | EF1: Linewidth | EG1: 1 | EI1: 1 | EK1: 1 | EM1: 1 | EO1: 1 | EQ1: 1.5
C2: Linetype | AF2: - . . - . . | AJ2: - . . - . . | AN2: - . . - . . | AR2: - . . - . . | AV2: - . . - . . | AZ2: -------- | BD2: - . - . - | BJ2: Linetype | BK2: - . . - . . | BO2: - . . - . . | BS2: - . . - . . | BW2: - . . - . . | CA2: - . . - . . | CE2: - . . - . . | CZ2: Linetype | DA2: - . . - . . | DE2: - . . - . . | DI2: - . . - . . | DM2: - . . - . . | DQ2: - . . - . . | DV2: Name | DW2: ID | DX2: Label | DY2: Linewidth | DZ2: Linetype | EA2: Linecolor | EB2: S-Offset | EC2: T1 | ED2: T2 | EF2: Linetype | EG2: - - - - - | EI2: - - - - - | EK2: - - - - - | EM2: - - - - - | EO2: - - - - - | EQ2: - - - - -
C3: Linecolor | BJ3: Linecolor | CZ3: Linecolor | DV3: HX-01 | DW3: HX1 | DX3: IULQ | DY3: 2 | EC3: 170.5016684 | ED3: 313 | EF3: Linecolor
C4: Name | D4: HP - 16bar | H4: MP - 3.25bar | L4: LP - 1.05bar | P4: SP - 0.216bar | T4: Last HX | X4: T1=>T2 | AF4: HX Core 1 | AJ4: HX Core 2 | AN4: HX Core 3 | AZ4: TS | BD4: ESS 2K Loop | BJ4: Name | CZ4: Name | DA4: CC-1 | DE4: CC-2 | DI4: CC-3 | DV4: HX-02 | DW4: HX2 | DX4: IULQ4 | DY4: 2 | EB4: 100 | EC4: 151.3515008 | ED4: 170.5016684 | EF4: Name | EG4: =OFFSET(INDIRECT("_Isobar_p"),1,0) & " barA" -> barA | EI4: =OFFSET(INDIRECT("_Isobar_p"),2,0) & " barA" -> barA | EK4: =OFFSET(INDIRECT("_Isobar_p"),3,0) & " barA" -> barA | EM4: =OFFSET(INDIRECT("_Isobar_p"),4,0) & " barA" -> barA | EO4: =OFFSET(INDIRECT("_Isobar_p"),5,0) & " barA" -> barA | EQ4: LV equilibrium
C5: Streams | D5: 0HPa | F5: =INDEX(_TSData,MATCH(D5,_cT_Streams,0),1) -> 300 | G5: =INDEX(_TSData,MATCH(D5,_cT_Streams,0),2) -> 23450.90075 | H5: 0MPc | J5: =INDEX(_TSData,MATCH(H5,_cT_Streams,0),1) -> 297.1049821 | K5: =INDEX(_TSData,MATCH(H5,_cT_Streams,0),2) -> 26222.00664 | L5: 0LPa | N5: =INDEX(_TSData,MATCH(L5,_cT_Streams,0),1) -> 297.1049822 | O5: =INDEX(_TSData,MATCH(L5,_cT_Streams,0),2) -> 29391.07666 | P5: 0SPa | R5: =INDEX(_TSData,MATCH(P5,_cT_Streams,0),1) ->  | S5: =INDEX(_TSData,MATCH(P5,_cT_Streams,0),2) ->  | T5: 12MPb | V5: =INDEX(_TSData,MATCH(T5,_cT_Streams,0),1) -> 4.812281781 | W5: =INDEX(_TSData,MATCH(T5,_cT_Streams,0),2) -> 1999.310862 | X5: T1Lb | Z5: =INDEX(_TSData,MATCH(X5,_cT_Streams,0),1) -> 130.7109109 | AA5: =INDEX(_TSData,MATCH(X5,_cT_Streams,0),2) -> 20168.6384 | AD5: =INDEX(_TSData,MATCH(AB5,_cT_Streams,0),1) ->  | AE5: =INDEX(_TSData,MATCH(AB5,_cT_Streams,0),2) ->  | AF5: 0HPa | AH5: =INDEX(_TSData,MATCH(AF5,_cT_Streams,0),1) -> 300 | AI5: =INDEX(_TSData,MATCH(AF5,_cT_Streams,0),2) -> 23450.90075 | AJ5: 3HPb | AL5: =INDEX(_TSData,MATCH(AJ5,_cT_Streams,0),1) ->  | AM5: =INDEX(_TSData,MATCH(AJ5,_cT_Streams,0),2) ->  | AN5: 8HPc | AP5: =INDEX(_TSData,MATCH(AN5,_cT_Streams,0),1) -> 27.81201581 | AQ5: =INDEX(_TSData,MATCH(AN5,_cT_Streams,0),2) -> 10920.38395 | AT5: =INDEX(_TSData,MATCH(AR5,_cT_Streams,0),1) ->  | AU5: =INDEX(_TSData,MATCH(AR5,_cT_Streams,0),2) ->  | AX5: =INDEX(_TSData,MATCH(AV5,_cT_Streams,0),1) ->  | AY5: =INDEX(_TSData,MATCH(AV5,_cT_Streams,0),2) ->  | AZ5: To TS | BB5: =INDEX(_TSData,MATCH(AZ5,_cT_Streams,0),1) -> 35.9 | BC5: =INDEX(_TSData,MATCH(AZ5,_cT_Streams,0),2) -> 12330.8906 | BD5: To Subcooler | BF5: =INDEX(_TSData,MATCH(BD5,_cT_Streams,0),1) ->  | BG5: =INDEX(_TSData,MATCH(BD5,_cT_Streams,0),2) ->  | BJ5: ID | BK5: T-1 | BO5: T-2 | BS5: T-3 | BW5: T-4 | CA5: T-5 | CE5: T-6 | CZ5: ID | DA5: CC-100 | DE5: CC-101 | DI5: CC-102 | DV5: HX-03 | DW5: HX3 | DX5: IULQ | DY5: 2 | EC5: 65.60901751 | ED5: 151.429804 | EG5: 300.0000285 | EH5: 24134.38267 | EI5: 300.0001138 | EJ5: 25602.61693 | EK5: 300.0001474 | EL5: 27361.97062 | EM5: 300.0001944 | EN5: 29542.23598 | EO5: 300.0002043 | EP5: 31125.15392 | EQ5: 3.5 | ER5: 886.95161
D6: 1HPa | F6: 151.5105251 | G6: 19908.23285 | H6: 1MPa | J6: 147.0302778 | K6: 22548.63362 | L6: 1LPa | N6: 147.0302368 | O6: 25654.42082 | P6: 1SPa | T6: 13MPa | V6: 4.58619877 | W6: 1747.804211 | X6: T2Ha | Z6: 63.50475281 | AA6: 16407.04085 | AF6: 0MPc | AH6: 297.1049821 | AI6: 26222.00664 | AJ6: 3MPa | AL6: 61.1637541 | AM6: 17969.93875 | AN6: 8MPa | AP6: 26.90773141 | AQ6: 13613.52992 | AZ6: From TS | BB6: 50.1 | BC6: 14184.40439 | BD6: From Subcooler | BJ6: Streams | BK6: 1HPa | BL6: =INDEX(_TSData,MATCH(BK6,_cT_Streams,0),1) -> 151.5105251 | BM6: =INDEX(_TSData,MATCH(BK6,_cT_Streams,0),2) -> 19908.23285 | BO6: T2Ha | BP6: =INDEX(_TSData,MATCH(BO6,_cT_Streams,0),1) -> 63.50475281 | BQ6: =INDEX(_TSData,MATCH(BO6,_cT_Streams,0),2) -> 16407.04085 | BS6: T3Hc | BT6: =INDEX(_TSData,MATCH(BS6,_cT_Streams,0),1) -> 50.1 | BU6: =INDEX(_TSData,MATCH(BS6,_cT_Streams,0),2) -> 14184.24611 | BW6: 8HPa | BX6: =INDEX(_TSData,MATCH(BW6,_cT_Streams,0),1) -> 27.81231024 | BY6: =INDEX(_TSData,MATCH(BW6,_cT_Streams,0),2) -> 10915.21426 | CA6: T5Ha | CB6: =INDEX(_TSData,MATCH(CA6,_cT_Streams,0),1) -> 10.47905772 | CC6: =INDEX(_TSData,MATCH(CA6,_cT_Streams,0),2) -> 4713.617467 | CE6: 12HPa | CF6: =INDEX(_TSData,MATCH(CE6,_cT_Streams,0),1) -> 5.09750871 | CG6: =INDEX(_TSData,MATCH(CE6,_cT_Streams,0),2) -> 1769.551462 | CJ6: =INDEX(_TSData,MATCH(CI6,_cT_Streams,0),1) ->  | CK6: =INDEX(_TSData,MATCH(CI6,_cT_Streams,0),2) ->  | CN6: =INDEX(_TSData,MATCH(CM6,_cT_Streams,0),1) ->  | CO6: =INDEX(_TSData,MATCH(CM6,_cT_Streams,0),2) ->  | CR6: =INDEX(_TSData,MATCH(CQ6,_cT_Streams,0),1) ->  | CS6: =INDEX(_TSData,MATCH(CQ6,_cT_Streams,0),2) ->  | CV6: =INDEX(_TSData,MATCH(CU6,_cT_Streams,0),1) ->  | CW6: =INDEX(_TSData,MATCH(CU6,_cT_Streams,0),2) ->  | CZ6: Streams | DA6: CC1in | DB6: =INDEX(_TSData,MATCH(DA6,_cT_Streams,0),1) ->  | DC6: =INDEX(_TSData,MATCH(DA6,_cT_Streams,0),2) ->  | DE6: CC1 | DF6: =INDEX(_TSData,MATCH(DE6,_cT_Streams,0),1) ->  | DG6: =INDEX(_TSData,MATCH(DE6,_cT_Streams,0),2) ->  | DI6: CC2 | DJ6: =INDEX(_TSData,MATCH(DI6,_cT_Streams,0),1) ->  | DK6: =INDEX(_TSData,MATCH(DI6,_cT_Streams,0),2) ->  | DN6: =INDEX(_TSData,MATCH(DM6,_cT_Streams,0),1) ->  | DO6: =INDEX(_TSData,MATCH(DM6,_cT_Streams,0),2) ->  | DR6: =INDEX(_TSData,MATCH(DQ6,_cT_Streams,0),1) ->  | DS6: =INDEX(_TSData,MATCH(DQ6,_cT_Streams,0),2) ->  | DV6: HX-04 | DW6: HX4 | DX6: IULQ4 | DY6: 2 | EB6: 100 | EC6: 51.7847242 | ED6: 65.61575682 | EG6: 235.8288994 | EH6: 22884.83201 | EI6: 232.7775364 | EJ6: 24285.35412 | EK6: 229.0331316 | EL6: 25960.44988 | EM6: 224.2828706 | EN6: 28031.85858 | EO6: 220.8040443 | EP6: 29533.59573 | EQ6: 3.677894743 | ER6: 1055.311717
D7: 2HPa | F7: 130.7109109 | G7: 19142.39975 | H7: 3MPa | J7: 61.1637541 | K7: 17969.93875 | L7: 2LPa | N7: 129.4336612 | O7: 24975.2149 | P7: 2SPa | AF7: 0LPa | AH7: 297.1049822 | AI7: 29391.07666 | AJ7: 3LPa | AL7: 61.16375413 | AM7: 20994.14551 | AN7: 8LPa | AP7: 26.90773219 | AQ7: 16638.3461 | BD7: Supply 2K | BK7: T1Ha | BL7: 151.5105251 | BM7: 19908.23285 | BO7: T2Hb | BP7: 63.51042221 | BQ7: 16434.16153 | BS7: T3La | BT7: 34.42079767 | BU7: 14922.73774 | BW7: 8HPb | BX7: 27.81201581 | BY7: 10920.38395 | CA7: T5Hb | CB7: 10.4752114 | CC7: 4727.720493 | CE7: 12HPb | CF7: 5.111153887 | CG7: 1790.93885 | DA7: CC1 | DB7: =INDEX(_TSData,MATCH(DA7,_cT_Streams,0),1) ->  | DC7: =INDEX(_TSData,MATCH(DA7,_cT_Streams,0),2) ->  | DE7: CC2 | DI7: From CC | DV7: HX-05 | DW7: HX5 | DX7: IULQ | DY7: 2 | EC7: 39.61 | ED7: 51.7847242 | EG7: 185.3944704 | EH7: 21635.28003 | EI7: 180.6249985 | EJ7: 22968.1319 | EK7: 174.8562745 | EL7: 24558.91729 | EM7: 167.6776003 | EN7: 26521.49641 | EO7: 162.5150476 | EP7: 27942.0301 | EQ7: 3.855789486 | ER7: 1229.295768
A8: Stream colors for labels | D8: 3HPa | F8: 63.50475281 | G8: 15369.64483 | H8: 3MPa | J8: 61.1637541 | K8: 17969.93875 | L8: 3LPa | N8: 61.16375413 | O8: 20994.14551 | P8: 3SPa | AF8: 0SPa | AJ8: 3SPa | AN8: 8SPa | BD8: 2K Return | BE8: TPM | BK8: T1Hb | BL8: 151.5196816 | BM8: 19924.45595 | BO8: T2La | BP8: 49.638 | BQ8: 16871.03066 | BS8: T3Lb | BT8: 34.42079767 | BU8: 14922.73774 | BW8: T4Ha | BX8: 27.81201581 | BY8: 10920.38395 | CA8: T5La | CB8: 8.210319536 | CC8: 5064.984235 | CE8: 12MPa | CF8: 4.812281781 | CG8: 1999.310862 | CZ8: Show in textbox | DV8: HX-06 | DW8: HX6 | DX8: IULQ4 | DY8: 2 | EB8: 100 | EC8: 37.97265986 | ED8: 39.61 | EG8: 145.764023 | EH8: 20385.74608 | EI8: 140.1664693 | EJ8: 21650.89203 | EK8: 133.5008688 | EL8: 23157.42522 | EM8: 125.3600268 | EN8: 25011.10355 | EO8: 119.612918 | EP8: 26350.38791 | EQ8: 4.033684229 | ER8: 1409.637587
A9: NO | D9: 3HPc | H9: 4MPa | J9: 49.638 | K9: 16871.03066 | L9: 4LPa | N9: 49.638 | O9: 19884.8278 | P9: 4SPa | BK9: T1La | BL9: 130.7109109 | BM9: 20168.6384 | BO9: T2Lb | BP9: 49.638 | BQ9: 16871.03066 | BS9: 7MPb | BT9: 34.42079767 | BU9: 14922.73774 | BW9: T4Hb | BX9: 27.80896035 | BY9: 10937.35959 | CA9: T5Lb | CB9: 8.210319615 | CC9: 5064.984235 | CE9: 12MPb | CF9: 4.812281781 | CG9: 1999.310862 | CZ9: Name | DA9: X | DE9: X | DI9: X | DV9: HX-07 | DW9: HX7 | DX9: IULQ | DY9: 2 | EC9: 25.47817908 | ED9: 37.97265986 | EG9: 114.6319039 | EH9: 19136.20674 | EI9: 108.7855797 | EJ9: 20333.63277 | EK9: 101.9311427 | EL9: 21755.75596 | EM9: 93.72641053 | EN9: 23500.73624 | EO9: 88.04458327 | EP9: 24759.10712 | EQ9: 4.211578971 | ER9: 1597.866868
D10: 3HPe | H10: 5MPa | J10: 49.62487683 | K10: 16861.5873 | L10: 5LPa | N10: 49.62487732 | O10: 19881.32465 | P10: 5SPa | BK10: T1Lb | BL10: 130.7109109 | BM10: 20168.6384 | BO10: 4MPb | BP10: 49.638 | BQ10: 16871.03022 | BW10: T4La | BX10: 18.85113274 | BY10: 11676.44738 | CZ10: Power | DA10: X | DE10: X | DI10: X | DV10: HX-08 | DW10: HX8 | DX10: IULQ4 | DY10: 2 | EB10: 100 | EC10: 17.44723374 | ED10: 25.4782698 | EG10: 90.1865818 | EH10: 17886.60399 | EI10: 84.45083193 | EJ10: 19016.21817 | EK10: 77.84440451 | EL10: 20354.44012 | EM10: 70.08041573 | EN10: 21990.33928 | EO10: 64.80547797 | EP10: 23167.39368 | EQ10: 4.389473714 | ER10: 1796.705597
A11: Tmin | D11: 4HPa | F11: 50.09514642 | G11: 14114.43895 | H11: 6MPa | J11: 35.36108089 | K11: 15073.18031 | L11: 6LPa | N11: 35.36108098 | O11: 18069.08247 | P11: 6SPa | BW11: T4Lb | BX11: 18.85113274 | BY11: 11676.44738 | CZ11: h is | DA11: X | DE11: X | DI11: X | DV11: HX-09 | DW11: HX9 | DX11: IULQ | DY11: 2 | EC11: 16.74010601 | ED11: 17.44723374 | EG11: 71.00765605 | EH11: 16637.02095 | EI11: 65.59390823 | EJ11: 17698.95918 | EK11: 59.46338953 | EL11: 18952.81197 | EM11: 52.40826375 | EN11: 20479.9604 | EO11: 47.70577571 | EP11: 21575.78294 | EQ11: 4.567368457 | ER11: 2010.937133
A12: 3.5 | D12: 5HPa | F12: 50.08693953 | G12: 14125.5053 | H12: 8MPa | J12: 26.90773141 | K12: 13613.52992 | L12: 8LPa | N12: 26.90773219 | O12: 16638.3461 | P12: 8SPa | CZ12: Mass flow | DA12: X | DV12: HX-10 | DW12: HX10 | DX12: IULQ4 | DY12: 2 | EB12: 100 | EC12: 8.973258085 | ED12: 16.74010601 | EG12: 55.9775776 | EH12: 15387.44962 | EI12: 50.99303039 | EJ12: 16381.88037 | EK12: 45.44797121 | EL12: 17551.31801 | EM12: 39.20395546 | EN12: 18969.59242 | EO12: 35.12479991 | EP12: 19984.20976 | EQ12: 4.7452632 | ER12: 2249.64453
A13: Tmax | D13: 6HPa | F13: 35.9 | G13: 12330.8906 | H13: T4Lb | J13: 18.85113274 | K13: 11676.44738 | L13: 9LPa | N13: 18.85113274 | O13: 14744.77265 | P13: From CC | CZ13: Molar flow | DV13: HX-11 | DW13: HX11 | DX13: IULQ | DY13: 2 | EC13: 7.851221045 | ED13: 8.973258085 | EG13: 44.21850817 | EH13: 14137.89671 | EI13: 39.69838866 | EJ13: 15064.63375 | EK13: 34.7664402 | EL13: 16149.51828 | EM13: 29.3421992 | EN13: 17459.2496 | EO13: 25.87104249 | EP13: 18392.70945 | EQ13: 4.923157943 | ER13: 2533.423183
A14: 300 | D14: 8HPa | F14: 27.81231024 | G14: 10915.21426 | L14: 10LPa | CZ14: Vol. flow | DV14: HX-12 | DW14: HX12 | DX14: IULQ4 | DY14: 2 | EB14: 100 | EC14: 5.219968593 | ED14: 5.677825043 | EG14: 35.04062262 | EH14: 12888.43792 | EI14: 30.97929209 | EJ14: 13747.48507 | EK14: 26.64050159 | EL14: 14748.2336 | EM14: 21.98179677 | EN14: 15948.87625 | EO14: 19.06685522 | EP14: 16801.08057 | EQ14: 5.101052686 | ER14: 2930.691124
D15: 9HPa | F15: 19.04037229 | G15: 8690.876519 | L15: 11LPa | N15: 8.110373696 | O15: 10173.96722 | CZ15: p | DA15: X | DE15: X | DI15: X | EG15: 27.89878556 | EH15: 11638.81292 | EI15: 24.26599589 | EJ15: 12430.23976 | EK15: 20.46730983 | EL15: 13346.70491 | EM15: 16.49401527 | EN15: 14438.24857 | EO15: 14.06833114 | EP15: 15209.52452 | EQ15: 5.190000057 | ER15: 3266.600403
A16: Trace LV equilibrium | D16: 10HPa | L16: 12LPa | N16: 4.6 | O16: 6397.835816 | CZ16: T IN | EG16: 22.3659346 | EH16: 10389.24883 | EI16: 19.1185072 | EJ16: 11112.83702 | EK16: 15.79355705 | EL16: 11945.26162 | EM16: 12.41228113 | EN16: 12928.07413 | EO16: 10.4011531 | EP16: 13618.01388 | EQ16: 5.012105314 | ER16: 5028.704622
A17: YES | D17: 11HPa | L17: 13LPa | N17: 4.500417629 | O17: 2048.226978 | CZ17: T OUT | EG17: 18.10250954 | EH17: 9139.639181 | EI17: 15.19904424 | EJ17: 9795.642062 | EK17: 12.27400794 | EL17: 10543.74845 | EM17: 9.386063453 | EN17: 11417.75851 | EO17: 7.717854858 | EP17: 12026.44823 | EQ17: 4.834210571 | ER17: 5502.083787
D18: 12HPa | F18: 5.09750871 | G18: 1769.551462 | CZ18: p IN | EG18: 14.83718113 | EH18: 7890.119469 | EI18: 12.24955391 | EJ18: 8478.392269 | EK18: 9.653476177 | EL18: 9142.269008 | EM18: 7.160752401 | EN18: 9907.343368 | EO18: 5.767924545 | EP18: 10434.84335 | EQ18: 4.656315829 | ER18: 5844.800229
A19: # of data points | D19: 12HPb | F19: 5.111153887 | G19: 1790.93885 | CZ19: p OUT | DA19: X | DE19: X | DI19: X | EG19: 12.34065911 | EH19: 6640.515455 | EI19: 10.07937116 | EJ19: 7161.145207 | EK19: 7.754864566 | EL19: 7740.602835 | EM19: 5.559502339 | EN19: 8396.930558 | EO19: 4.3788231 | EP19: 8843.264394 | EQ19: 4.478421086 | ER19: 6134.216014
A20: 20 | EG20: 10.39782902 | EH20: 5390.953994 | EI20: 8.534838987 | EJ20: 5844.027429 | EK20: 6.482451213 | EL20: 6339.022901 | EM20: 4.478718421 | EN20: 6886.557447 | EO20: 3.534023922 | EP20: 7251.699405 | EQ20: 4.300526343 | ER20: 6396.302786
EG21: 8.771774195 | EH21: 4141.195008 | EI21: 7.432666497 | EJ21: 4526.65073 | EK21: 5.804192646 | EL21: 4937.547911 | EM21: 4.259505332 | EN21: 5376.172428 | EO21: 3.533101263 | EP21: 5660.136006 | EQ21: 4.1226316 | ER21: 6643.816894
A22: Reference stream | BJ22: Show in textbox | EG22: 7.159763553 | EH22: 2891.820809 | EI22: 6.469424879 | EJ22: 3209.385097 | EK22: 5.524949763 | EL22: 3535.93664 | EM22: 4.260535139 | EN22: 3865.793667 | EO22: 3.534894712 | EP22: 4068.572608 | EQ22: 3.944736857 | ER22: 6884.62209
A23: 0HPa | BJ23: Name | EG23: 5.373857023 | EH23: 1642.263235 | EI23: 5.157130714 | EJ23: 1892.126672 | EK23: 4.921667075 | EL23: 2134.475478 | EM23: 4.256942312 | EN23: 2355.414905 | EO23: 3.535659983 | EP23: 2477.009209 | EQ23: 3.766842114 | ER23: 7124.320787
BJ24: Power | BK24: X | BO24: X | BS24: X | BW24: X | CA24: X | CE24: X | EG24: 3.499999628 | EH24: 392.7020243 | EI24: 3.499998955 | EJ24: 574.8976274 | EK24: 3.499983891 | EL24: 732.9529592 | EM24: 3.499978014 | EN24: 845.0156046 | EO24: 3.49998918 | EP24: 885.4352781 | EQ24: 3.588947371 | ER24: 7367.47578
BJ25: h is | BK25: X | BO25: X | BS25: X | BW25: X | CA25: X | CE25: X
BJ26: DHs | BK26: X | BO26: X | BS26: X | BW26: X | CA26: X | CE26: X
BJ27: Mass flow | BK27: X | BO27: X | BS27: X | BW27: X | CA27: X | CE27: X
BJ28: Molar flow
BJ29: Vol. flow
BJ30: T IN | BK30: X | BO30: X | BS30: X | BW30: X | CA30: X | CE30: X
A31: Trace Isenthalpes | BJ31: T OUT
A32: NO | BJ32: p IN | BK32: X | BO32: X | BS32: X | BW32: X | CA32: X | CE32: X
A33: # of data points | BJ33: p OUT
A34: 20 | BJ34: Cf
A35: Trace isobars between | BJ35: Speed
A36: 50 | BJ36: Losses | DU36: Side | DV36: Side Name | DW36: 1 | DX36: 2 | DY36: 3
A37: 0.004 | F37: =INDEX(_TSData,MATCH(D37,_cT_Streams,0),1) ->  | G37: =INDEX(_TSData,MATCH(D37,_cT_Streams,0),2) ->  | J37: =INDEX(_TSData,MATCH(H37,_cT_Streams,0),1) ->  | K37: =INDEX(_TSData,MATCH(H37,_cT_Streams,0),2) ->  | N37: =INDEX(_TSData,MATCH(L37,_cT_Streams,0),1) ->  | O37: =INDEX(_TSData,MATCH(L37,_cT_Streams,0),2) ->  | V37: =INDEX(_TSData,MATCH(T37,_cT_Streams,0),1) ->  | W37: =INDEX(_TSData,MATCH(T37,_cT_Streams,0),2) ->  | BF37: =INDEX(_TSData,MATCH(BD37,_cT_Streams,0),1) ->  | BG37: =INDEX(_TSData,MATCH(BD37,_cT_Streams,0),2) ->  | BJ37: Bearing | DU37: 1 | DV37: HP | DW37: 0HPa | DX37: 3HPb | DY37: 6HPa
A38: Start temperature | DU38: 2 | DV38: MP | DW38: 0MPc | DX38: 3MPa | DY38: 6MPa
A39: 200 | DU39: 3 | DV39: LP | DW39: 0LPa | DX39: 3LPa | DY39: 6LPa
A40: 100 | BI40: VALVES | BJ40: Linewidth | DU40: 4 | DV40: SP | DW40: 0SPa | DX40: 3SPa | DY40: 6SPa
A41: 70 | BJ41: Linetype | BK41: -------- | BO41: -------- | DU41: 5
A42: 50 | BJ42: Linecolor | DU42: 6
A43: 25 | BJ43: Name | BK43: JT Valve | DU43: 7
A44: 15 | BJ44: ID | BK44: VLV-JT | BL44: =MATCH(BK44,TSAuxData!$A$1:$A$100,0) -> 2 | BP44: =MATCH(BO44,TSAuxData!$A$1:$A$100,0) ->  | BT44: =MATCH(BS44,TSAuxData!$A$1:$A$100,0) ->  | BX44: =MATCH(BW44,TSAuxData!$A$1:$A$100,0) ->  | CB44: =MATCH(CA44,TSAuxData!$A$1:$A$100,0) ->  | CF44: =MATCH(CE44,TSAuxData!$A$1:$A$100,0) ->  | CJ44: =MATCH(CI44,TSAuxData!$A$1:$A$100,0) ->  | CN44: =MATCH(CM44,TSAuxData!$A$1:$A$100,0) ->  | CR44: =MATCH(CQ44,TSAuxData!$A$1:$A$100,0) ->  | CV44: =MATCH(CU44,TSAuxData!$A$1:$A$100,0) ->  | DU44: 8
A45: 10 | BK45: 1 | BL45: =OFFSET(INDIRECT("TSAUXDATA!A1",TRUE),BL$44-1,BK45) -> 4.58619877 | BM45: =OFFSET(INDIRECT("TSAUXDATA!A1",TRUE),BL$44-1,BK45+10) -> 1747.804211 | BO45: 1 | BP45: =OFFSET(INDIRECT("TSAUXDATA!A1",TRUE),BP$44-1,BO45) ->  | BQ45: =OFFSET(INDIRECT("TSAUXDATA!A1",TRUE),BP$44-1,BO45+10) ->  | BS45: 1 | BT45: =OFFSET(INDIRECT("TSAUXDATA!A1",TRUE),BT$44-1,BS45) ->  | BU45: =OFFSET(INDIRECT("TSAUXDATA!A1",TRUE),BT$44-1,BS45+10) ->  | BW45: 1 | BX45: =OFFSET(INDIRECT("TSAUXDATA!A1",TRUE),BX$44-1,BW45) ->  | BY45: =OFFSET(INDIRECT("TSAUXDATA!A1",TRUE),BX$44-1,BW45+10) ->  | CA45: 1 | CB45: =OFFSET(INDIRECT("TSAUXDATA!A1",TRUE),CB$44-1,CA45) ->  | CC45: =OFFSET(INDIRECT("TSAUXDATA!A1",TRUE),CB$44-1,CA45+10) ->  | CE45: 1 | CF45: =OFFSET(INDIRECT("TSAUXDATA!A1",TRUE),CF$44-1,CE45) ->  | CG45: =OFFSET(INDIRECT("TSAUXDATA!A1",TRUE),CF$44-1,CE45+10) ->  | CI45: 1 | CJ45: =OFFSET(INDIRECT("TSAUXDATA!A1",TRUE),CJ$44-1,CI45) ->  | CK45: =OFFSET(INDIRECT("TSAUXDATA!A1",TRUE),CJ$44-1,CI45+10) ->  | CM45: 1 | CN45: =OFFSET(INDIRECT("TSAUXDATA!A1",TRUE),CN$44-1,CM45) ->  | CO45: =OFFSET(INDIRECT("TSAUXDATA!A1",TRUE),CN$44-1,CM45+10) ->  | CQ45: 1 | CR45: =OFFSET(INDIRECT("TSAUXDATA!A1",TRUE),CR$44-1,CQ45) ->  | CS45: =OFFSET(INDIRECT("TSAUXDATA!A1",TRUE),CR$44-1,CQ45+10) ->  | CU45: 1 | CV45: =OFFSET(INDIRECT("TSAUXDATA!A1",TRUE),CV$44-1,CU45) ->  | CW45: =OFFSET(INDIRECT("TSAUXDATA!A1",TRUE),CV$44-1,CU45+10) ->  | DU45: 9
A46: 7 | BK46: 2 | BL46: 4.59357315 | BM46: 1780.316182 | BO46: 2 | BS46: 2 | BW46: 2 | CA46: 2 | CE46: 2 | CI46: 2 | CM46: 2 | CQ46: 2 | CU46: 2 | DU46: 10
A47: 5 | BK47: 3 | BL47: 4.599267507 | BM47: 1811.306179 | BO47: 3 | BS47: 3 | BW47: 3 | CA47: 3 | CE47: 3 | CI47: 3 | CM47: 3 | CQ47: 3 | CU47: 3
A48: 3.5 | BK48: 4 | BL48: 4.603134888 | BM48: 1842.513347 | BO48: 4 | BS48: 4 | BW48: 4 | CA48: 4 | CE48: 4 | CI48: 4 | CM48: 4 | CQ48: 4 | CU48: 4
BK49: 5 | BL49: 4.605001297 | BM49: 1874.277164 | BO49: 5 | BS49: 5 | BW49: 5 | CA49: 5 | CE49: 5 | CI49: 5 | CM49: 5 | CQ49: 5 | CU49: 5
BK50: 6 | BL50: 4.604657447 | BM50: 1909.414615 | BO50: 6 | BS50: 6 | BW50: 6 | CA50: 6 | CE50: 6 | CI50: 6 | CM50: 6 | CQ50: 6 | CU50: 6
BK51: 7 | BL51: 4.601869846 | BM51: 1947.701385 | BO51: 7 | BS51: 7 | BW51: 7 | CA51: 7 | CE51: 7 | CI51: 7 | CM51: 7 | CQ51: 7 | CU51: 7
BK52: 8 | BL52: 4.596330178 | BM52: 1978.589479 | BO52: 8 | BS52: 8 | BW52: 8 | CA52: 8 | CE52: 8 | CI52: 8 | CM52: 8 | CQ52: 8 | CU52: 8
BK53: 9 | BL53: 4.587696881 | BM53: 2012.039972 | BO53: 9 | BS53: 9 | BW53: 9 | CA53: 9 | CE53: 9 | CI53: 9 | CM53: 9 | CQ53: 9 | CU53: 9
BK54: 10 | BL54: 4.499154387 | BM54: 2048.222685 | BO54: 10 | BS54: 10 | BW54: 10 | CA54: 10 | CE54: 10 | CI54: 10 | CM54: 10 | CQ54: 10 | CU54: 10

Sheet TSAuxData (hidden)
A1: Valve | B1: T1 | C1: T2 | D1: T3 | E1: T4 | F1: T5 | G1: T6 | H1: T7 | I1: T8 | J1: T9 | K1: T10 | L1: S1 | M1: S2 | N1: S3 | O1: S4 | P1: S5 | Q1: S6 | R1: S7 | S1: S8 | T1: S9 | U1: S10 | W1: Turbine | X1: Up 1 | Y1: Up 2 | Z1: Up 3 | AA1: Up 4 | AB1: Up 5 | AC1: Up 6 | AD1: Down 1 | AE1: Down 2 | AF1: Down 3 | AG1: Down 4 | AH1: Down 5 | AI1: Down 6 | AK1: Compressor | AL1: Up | AM1: Down
A2: VLV-JT | B2: 4.58619877 | C2: 4.59357315 | D2: 4.599267507 | E2: 4.603134888 | F2: 4.605001297 | G2: 4.604657447 | H2: 4.601869846 | I2: 4.596330178 | J2: 4.587696881 | K2: 4.499154387 | L2: 1747.804211 | M2: 1780.316182 | N2: 1811.306179 | O2: 1842.513347 | P2: 1874.277164 | Q2: 1909.414615 | R2: 1947.701385 | S2: 1978.589479 | T2: 2012.039972 | U2: 2048.222685 | W2: T-6 | X2: 12HPb | Y2: 12HPa | AD2: 12MPa | AE2: 12MPb | AK2: C-LP/MP | AL2: 0LPh | AM2: 0MPa | BJ2: 573.1595502 | BK2: 27247.43271
A3: VLV-Dewar | B3: 4.502854709 | C3: 4.500565742 | D3: 4.498276035 | E3: 4.495985191 | F3: 4.493693213 | G3: 4.491400102 | H3: 4.489106187 | I3: 4.486810814 | J3: 4.487901601 | K3: 4.485615123 | L3: 6106.649343 | M3: 6107.237806 | N3: 6109.476561 | O3: 6111.720329 | P3: 6113.969129 | Q3: 6116.222982 | R3: 6119.551314 | S3: 6121.817348 | T3: 6124.447417 | U3: 6126.724891 | W3: T-3 | X3: T3Hc | AD3: T3La | AE3: T3Lb | AF3: 7MPb | AK3: C-MP/HP | AL3: 0MPe | AM3: 0HPe
A4: VLV-T6 | B4: 5.09750871 | C4: 5.099045902 | D4: 5.100577862 | E4: 5.102104577 | F4: 5.103626031 | G4: 5.105142211 | H4: 5.106653101 | I4: 5.108158687 | J4: 5.109658954 | K4: 5.111153887 | L4: 1769.551462 | M4: 1771.926072 | N4: 1774.301099 | O4: 1776.676546 | P4: 1779.052415 | Q4: 1781.42871 | R4: 1783.805431 | S4: 1786.18258 | T4: 1788.560699 | U4: 1790.93885 | W4: T-4 | X4: T4Hb | Y4: T4Ha | Z4: 8HPb | AA4: 8HPa | AD4: T4La | AE4: T4Lb
A5: VLV-HP/LP | B5: 299.995644 | C5: 300.1253541 | D5: 300.2550579 | E5: 300.3847549 | F5: 300.5144444 | G5: 300.6441257 | H5: 300.7737983 | I5: 300.9034614 | J5: 301.0331145 | K5: 301.1627568 | L5: 23443.48169 | M5: 23676.38472 | N5: 23938.2095 | O5: 24237.25275 | P5: 24585.98856 | Q5: 25004.44957 | R5: 25527.9192 | S5: 26227.87001 | T5: 27288.77912 | U5: 29562.30372 | W5: T-5 | X5: T5Hb | Y5: T5Ha | AD5: T5La | AE5: T5Lb
A6: VLV-T3 | B6: 50.08693953 | C6: 50.08839254 | D6: 50.08984509 | E6: 50.09129717 | F6: 50.0927488 | G6: 50.09419996 | H6: 50.09565066 | I6: 50.0971009 | J6: 50.09855068 | K6: 50.1 | L6: 14125.5053 | M6: 14131.9579 | N6: 14138.42878 | O6: 14144.91805 | P6: 14151.42582 | Q6: 14157.9522 | R6: 14164.49731 | S6: 14171.06125 | T6: 14177.64415 | U6: 14184.24611 | W6: T-1 | X6: T1Hb | Y6: T1Ha | Z6: 1HPa | AD6: T1La | AE6: T1Lb
A7: VLV-T4 | B7: 27.81201581 | C7: 27.81167776 | D7: 27.81133934 | E7: 27.81100056 | F7: 27.81066143 | G7: 27.81032193 | H7: 27.80998208 | I7: 27.80964186 | J7: 27.80930129 | K7: 27.80896035 | L7: 10920.38395 | M7: 10922.25493 | N7: 10924.12742 | O7: 10926.00143 | P7: 10927.87696 | Q7: 10929.75401 | R7: 10931.63259 | S7: 10933.51269 | T7: 10935.39433 | U7: 10937.2775 | W7: T-2 | X7: T2Hb | Y7: T2Ha | AD7: T2La | AE7: T2Lb | AF7: 4MPb
A8: VLV-T5 | B8: 10.47905772 | C8: 10.47864067 | D8: 10.47822105 | E8: 10.47779886 | F8: 10.47737408 | G8: 10.47694672 | H8: 10.47651678 | I8: 10.47608424 | J8: 10.47564912 | K8: 10.4752114 | L8: 4713.617467 | M8: 4715.180947 | N8: 4716.745303 | O8: 4718.310537 | P8: 4719.876652 | Q8: 4721.443648 | R8: 4723.011529 | S8: 4724.580296 | T8: 4726.149949 | U8: 4727.720493
A9: VLV-T1 | B9: 151.5105251 | C9: 151.5115424 | D9: 151.5125598 | E9: 151.5135772 | F9: 151.5145946 | G9: 151.515612 | H9: 151.5166294 | I9: 151.5176468 | J9: 151.5186642 | K9: 151.5196816 | L9: 19908.23285 | M9: 19910.02517 | N9: 19911.81898 | O9: 19913.61429 | P9: 19915.41108 | Q9: 19917.20938 | R9: 19919.00918 | S9: 19920.81048 | T9: 19922.61328 | U9: 19924.4176
A10: VLV-T2 | B10: 63.50475281 | C10: 63.50538274 | D10: 63.50601267 | E10: 63.5066426 | F10: 63.50727254 | G10: 63.50790247 | H10: 63.5085324 | I10: 63.50916233 | J10: 63.50979227 | K10: 63.5104222 | L10: 16407.04085 | M10: 16410.0057 | N10: 16412.97457 | O10: 16415.94749 | P10: 16418.92446 | Q10: 16421.90549 | R10: 16424.89059 | S10: 16427.87978 | T10: 16430.87307 | U10: 16433.87047

Sheet LNG
A1: Name | B1: UA | C1: LMTD | D1: NTU | E1: Effectiveness (Countercurrent) | F1: Cold Pinch Temperature | G1: DT min | H1: Duty | I1: Heat Leak | K1: Stream Names | L1: Duty | M1: Not Used | N1: Pressure Drop | O1: Mass flow | P1: Composition | Q1: In Temperature | R1: In Pressure | S1: In liquid fraction | T1: Out Temperature | U1: Out Pressure | V1: Out Liquid Fraction | X1: Stream Names | Y1: Duty | Z1: Not Used | AA1: Pressure Drop | AB1: Mass flow | AC1: Composition | AD1: In Temperature | AE1: In Pressure | AF1: In liquid fraction | AG1: Out Temperature | AH1: Out Pressure | AI1: Out Liquid Fraction | AK1: Stream Names | AL1: Duty | AM1: Not Used | AN1: Pressure Drop | AO1: Mass flow | AP1: Composition | AQ1: In Temperature | AR1: In Pressure | AS1: In liquid fraction | AT1: Out Temperature | AU1: Out Pressure | AV1: Out Liquid Fraction | AX1: Stream Names | AY1: Duty | AZ1: Not Used | BA1: Pressure Drop | BB1: Mass flow | BC1: Composition | BD1: In Temperature | BE1: In Pressure | BF1: In liquid fraction | BG1: Out Temperature | BH1: Out Pressure | BI1: Out Liquid Fraction
A2: HX-01 | B2: 470316.8965 | C2: 3.62454645 | D2: 41.41360342 | E2: 0.9811014515 | F2: 297.1049821 | G2: 2.895017909 | H2: 1704685.438 | I2: 440 | J2: HOT | K2: 0HPa ~ 1HPa | L2: 1704787.627 | M2: --- | N2: 50 | O2: 2210.700289 | P2: Helium:1 | Q2: 300 | R2: 19.74 | S2: 0 | T2: 151.5105251 | U2: 19.69 | V2: 0 | W2: COLD | X2: 1MPa ~ 0MPc | Y2: 817324.1916 | Z2: --- | AA2: 50 | AB2: 1048.810289 | AC2: Helium:1 | AD2: 147.0302778 | AE2: 5.12 | AF2: 0 | AG2: 297.1049821 | AH2: 5.07 | AI2: 0 | AJ2: COLD | AK2: 1LPa ~ 0LPa | AL2: 887699.0562 | AM2: --- | AN2: 45.44665885 | AO2: 1139.148104 | AP2: Helium:1 | AQ2: 147.0302368 | AR2: 1.147658908 | AS2: 0 | AT2: 297.1049822 | AU2: 1.102212249 | AV2: 0
A3: HX-02 | B3: 78325.93084 | C3: 2.551928353 | D3: 8.152948437 | E3: 0.9465148054 | F3: 129.4336331 | G3: 1.277277782 | H3: 199882.1637 | I3: 77 | J3: HOT | K3: 1HPb ~ 2HPa | L3: 199882.1637 | M3: --- | N3: 20 | O3: 1847.700289 | P3: Helium:1 | Q3: 151.5105251 | R3: 19.69 | S3: 0 | T3: 130.7109109 | U3: 19.67 | V3: 0 | W3: COLD | X3: 2MPa ~ 1MPa | Y3: 95866.77703 | Z3: --- | AA3: 20 | AB3: 1048.810289 | AC3: Helium:1 | AD3: 129.4336331 | AE3: 5.14 | AF3: 0 | AG3: 147.0302778 | AH3: 5.12 | AI3: 0 | AJ3: COLD | AK3: 2LPa ~ 1LPa | AL3: 104092.3866 | AM3: --- | AN3: 9.488862837 | AO3: 1139.148104 | AP3: Helium:1 | AQ3: 129.4336612 | AR3: 1.15714777 | AS3: 0 | AT3: 147.0302368 | AU3: 1.147658908 | AV3: 0
A4: HX-03 | B4: 454110.3312 | C4: 1.708789565 | D4: 39.98045736 | E4: 0.982440476 | F4: 129.4336331 | G4: 1.277277778 | H4: 775978.9953 | I4: 463 | J4: HOT | K4: T1Lb ~ T2Ha | L4: 127102.7515 | M4: --- | N4: 20 | O4: 362.8 | P4: Helium:1 | Q4: 130.7109109 | R4: 12 | S4: 0 | T4: 63.50475281 | U4: 11.98 | V4: 0 | W4: HOT | X4: 2HPa ~ 3HPa | Y4: 648872.7734 | Z4: --- | AA4: 20 | AB4: 1847.700289 | AC4: Helium:1 | AD4: 130.7109109 | AE4: 19.67 | AF4: 0 | AG4: 63.50475281 | AH4: 19.65 | AI4: 0 | AJ4: COLD | AK4: 3MPa ~ 2MPa | AL4: 372466.7919 | AM4: --- | AN4: 20 | AO4: 1048.810289 | AP4: Helium:1 | AQ4: 61.1637541 | AR4: 5.16 | AS4: 0 | AT4: 129.4336331 | AU4: 5.14 | AV4: 0 | AW4: COLD | AX4: 3LPa ~ 2LPa | AY4: 403978.6739 | AZ4: --- | BA4: 49.44196952 | BB4: 1139.148104 | BC4: Helium:1 | BD4: 61.16375413 | BE4: 1.20658974 | BF4: 0 | BG4: 129.4336612 | BH4: 1.15714777 | BI4: 0
A5: HX-04 | B5: 114777.7804 | C5: 1.144002821 | D5: 11.71441374 | E5: 0.9675181888 | F5: 49.638 | G5: 0.4571464162 | H5: 131306.1046 | I5: 113 | J5: HOT | K5: 3HPa ~ 4HPa | L5: 131306.1046 | M5: --- | N5: 20 | O5: 1847.700289 | P5: Helium:1 | Q5: 63.50475281 | R5: 19.65 | S5: 0 | T5: 50.09514642 | U5: 19.63 | V5: 0 | W5: COLD | X5: 4MPb ~ 3MPa | Y5: 63146.91299 | Z5: --- | AA5: 20 | AB5: 1048.810289 | AC5: Helium:1 | AD5: 49.638 | AE5: 5.18 | AF5: 0 | AG5: 61.1637541 | AH5: 5.16 | AI5: 0 | AJ5: COLD | AK5: 4LPa ~ 3LPa | AL5: 68272.19161 | AM5: --- | AN5: 13.73388042 | AO5: 1139.148104 | AP5: Helium:1 | AQ5: 49.638 | AR5: 1.22032362 | AS5: 0 | AT5: 61.16375413 | AU5: 1.20658974 | AV5: 0
A6: HX-05 | B6: 245.6925327 | C6: 0.4807687331 | D6: 0.02845164316 | E6: 0.02771228211 | F6: 49.638 | G6: 0.4604272807 | H6: 118.1212877 | I6: 5 | J6: HOT | K6: 4HPb ~ 5HPa | L6: 118.1212877 | M6: --- | N6: 20 | O6: 1847.700289 | P6: Helium:1 | Q6: 50.09842728 | R6: 19.54 | S6: 0 | T6: 50.08693953 | U6: 19.52 | V6: 0 | W6: COLD | X6: 5MPa ~ 4MPa | Y6: 45.51688038 | Z6: --- | AA6: 20 | AB6: 686.2102886 | AC6: Helium:1 | AD6: 49.62487683 | AE6: 5.2 | AF6: 0 | AG6: 49.638 | AH6: 5.18 | AI6: 0 | AJ6: COLD | AK6: 5LPa ~ 4LPa | AL6: 77.60440731 | AM6: --- | AN6: 1.248534584 | AO6: 1139.148104 | AP6: Helium:1 | AQ6: 49.62487732 | AR6: 1.221572155 | AS6: 0 | AT6: 49.638 | AU6: 1.22032362 | AV6: 0
A7: HX-06 | B7: 285783.6965 | C7: 0.4749562949 | D7: 30.11159149 | E7: 0.9707704369 | F7: 45.90926319 | G7: 0.4547296603 | H7: 135734.7656 | I7: 280 | J7: HOT | K7: 5HPb ~ 6HPa | L7: 135734.7656 | M7: --- | N7: 20 | O7: 1774.380824 | P7: Helium:1 | Q7: 50.08693953 | R7: 19.52 | S7: 0 | T7: 35.9 | U7: 19.5 | V7: 0 | W7: COLD | X7: 6MPa ~ 5MPa | Y7: 51408.7567 | Z7: --- | AA7: 20 | AB7: 686.2102886 | AC7: Helium:1 | AD7: 35.36108089 | AE7: 5.22 | AF7: 0 | AG7: 49.62487683 | AH7: 5.2 | AI7: 0 | AJ7: COLD | AK7: 6LPa ~ 5LPa | AL7: 84606.00893 | AM7: --- | AN7: 28.21688159 | AO7: 1139.148104 | AP7: Helium:1 | AQ7: 35.36108098 | AR7: 1.249789037 | AS7: 0 | AT7: 49.62487732 | AU7: 1.221572155 | AV7: 0
A8: HX-07 | B8: 20861.5027 | C8: 0.4301947732 | D8: 2.662864355 | E8: 0.7729364649 | F8: 34.42079767 | G8: 0.3360435549 | H8: 8974.509421 | I8: 20 | J8: HOT | K8: 6HPb ~ 7HPa | L8: 8974.509421 | M8: --- | N8: 20 | O8: 1431.23 | P8: Helium:1 | Q8: 35.9 | R8: 19.5 | S8: 0 | T8: 34.75684122 | U8: 19.48 | V8: 0 | W8: COLD | X8: 7MPb ~ 6MPa | Y8: 3408.986953 | Z8: --- | AA8: 20 | AB8: 686.2102886 | AC8: Helium:1 | AD8: 34.42079767 | AE8: 5.24 | AF8: 0 | AG8: 35.36108089 | AH8: 5.22 | AI8: 0 | AJ8: COLD | AK8: 7LPa ~ 6LPa | AL8: 5585.522468 | AM8: --- | AN8: 1.248534584 | AO8: 1139.148104 | AP8: Helium:1 | AQ8: 34.42079767 | AR8: 1.251037571 | AS8: 0 | AT8: 35.36108098 | AU8: 1.249789037 | AV8: 0
A9: HX-08 | B9: 98730.60107 | C9: 0.5608839708 | D9: 13.42333662 | E9: 0.9588034879 | F9: 34.42079767 | G9: 0.3360435561 | H9: 55376.41157 | I9: 96 | J9: HOT | K9: 7HPa ~ 8HPa | L9: 55376.41157 | M9: --- | N9: 20 | O9: 1431.23 | P9: Helium:1 | Q9: 34.75684122 | R9: 19.48 | S9: 0 | T9: 27.81231024 | U9: 19.46 | V9: 0 | W9: COLD | X9: 8MPa ~ 7MPa | Y9: 10778.13861 | Z9: --- | AA9: 1.248534584 | AB9: 270 | AC9: Helium:1 | AD9: 26.90773141 | AE9: 5.241248535 | AF9: 0 | AG9: 34.42079767 | AH9: 5.24 | AI9: 0 | AJ9: COLD | AK9: 8LPa ~ 7LPa | AL9: 44694.27296 | AM9: --- | AN9: 1.2485 | AO9: 1139.148104 | AP9: Helium:1 | AQ9: 26.90773219 | AR9: 1.252286071 | AS9: 0 | AT9: 34.42079767 | AU9: 1.251037571 | AV9: 0
A10: HX-09 | B10: 147994.2726 | C10: 0.4042149328 | D10: 21.51163813 | E10: 0.9831140968 | F10: 18.85113274 | G10: 0.1892395499 | H10: 59821.49498 | I10: 150 | J10: HOT | K10: 8HPc ~ 9HPa | L10: 59821.49498 | M10: --- | N10: 20 | O10: 1160.95 | P10: Helium:1 | Q10: 27.81201581 | R10: 19.415 | S10: 0 | T10: 19.04037229 | U10: 19.395 | V10: 0 | W10: COLD | X10: T4Lb ~ 8MPa | Y10: 11793.38181 | Z10: --- | AA10: 15.23212192 | AB10: 270 | AC10: Helium:1 | AD10: 18.85113274 | AE10: 5.256480657 | AF10: 0 | AG10: 26.90773141 | AH10: 5.241248535 | AI10: 0 | AJ10: COLD | AK10: 9LPa ~ 8LPa | AL10: 48178.11316 | AM10: --- | AN10: 15.2321 | AO10: 1139.148104 | AP10: Helium:1 | AQ10: 18.85113274 | AR10: 1.267518171 | AS10: 0 | AT10: 26.90773219 | AU10: 1.252286071 | AV10: 0
A11: HX-10 | B11: 80836.08698 | C11: 0.8144839127 | D11: 13.34040938 | E11: 0.9858382805 | F11: 18.85113274 | G11: 0.1892395499 | H11: 65839.69241 | I11: 82 | J11: HOT | K11: 9HPa ~ T5Ha | L11: 65839.69241 | M11: --- | N11: 20 | O11: 1160.95 | P11: Helium:1 | Q11: 19.04037229 | R11: 19.395 | S11: 0 | T11: 10.47905772 | U11: 19.375 | V11: 0 | W11: COLD | X11: 11LPa ~ 9LPa | Y11: 65921.69241 | Z11: --- | AA11: 3.246189918 | AB11: 1139.148104 | AC11: Helium:1 | AD11: 8.110373696 | AE11: 1.270764361 | AF11: 0 | AG11: 18.85113274 | AH11: 1.267518171 | AI11: 0
A12: HX-12 | B12: 52346.55292 | C12: 0.495283972 | D12: 8.032417386 | E12: 0.9732705466 | F12: 8.110373696 | G12: 0.09994576116 | H12: 25926.40865 | I12: 53 | J12: HOT | K12: T5Lb ~ 12HPa | L12: 25926.40865 | M12: --- | N12: 10 | O12: 1160.3 | P12: Helium:1 | Q12: 8.210319615 | R12: 8 | S12: 0 | T12: 5.09750871 | U12: 7.99 | V12: 1 | W12: COLD | X12: 12LPa ~ 11LPa | Y12: 25979.40865 | Z12: --- | AA12: 10.73739742 | AB12: 1139.148104 | AC12: Helium:1 | AD12: 4.6 | AE12: 1.281501758 | AF12: 0 | AG12: 8.110373696 | AH12: 1.270764361 | AI12: 0
A13: HX-13 | B13: 8823.249427 | C13: 0.1569537882 | D13: 1.416961741 | E13: 0.6703712823 | F13: 4.485615123 | G13: 0.1005836472 | H13: 1384.842422 | I13: 9 | J13: HOT | K13: 12MPb ~ 13MPa | L13: 1384.842422 | M13: --- | N13: 10 | O13: 1159.5 | P13: Helium:1 | Q13: 4.812281781 | R13: 3 | S13: 1 | T13: 4.58619877 | U13: 2.99 | V13: 1 | W13: COLD | X13: 13LPd ~ 12LPa | Y13: --- | Z13: --- | AA13: 1.498241501 | AB13: 1139.148104 | AC13: Helium:1 | AD13: 4.485615123 | AE13: 1.283 | AF13: 0.001971690051 | AG13: 4.6 | AH13: 1.281501758 | AI13: 0

Sheet CoolerHeater
A1: Type | B1: Name | C1: Power | D1: Mass Flow | E1: Molar Flow | F1: Feed Volume Flow | G1: Molar composition | H1: Pressure Drop | I1: Delta T | J1: Feed Temperature | K1: Feed Pressure | L1: Feed Liquid Fraction | M1: Product Temperature | N1: Product Pressure | O1: Product Liquid Fraction
A2: Cooler | B2: HP Cooler | C2: 3655478.314 | D2: 2360.360756 | E2: 47578.7984 | F2: 5221.398953 | G2: Helium:1 | H2: 0 | I2: -298.3489415 | J2: 598.3489415 | K2: 20.31 | L2: 0 | M2: 300 | N2: 20.31 | O2: 0
A3: Cooler | B3: MP Cooler | C3: 2323129.031 | D3: 1311.550468 | E3: 26437.48212 | F3: 12587.20013 | G3: Helium:1 | H3: 0 | I3: -341.1460134 | J3: 641.1460134 | K3: 5 | L3: 0 | M3: 300 | N3: 5 | O3: 0
A4: Cooler | B4: ORS | C4: 434.6172065 | D4: 2360.360756 | E4: 47578.7984 | F4: 2631.17916 | G4: Helium:1 | H4: 500 | I4: -0.004356030394 | J4: 300 | K4: 20.31 | L4: 0 | M4: 299.995644 | N4: 19.81 | O4: 0
A5: Heater | B5: Ads20K | C5: 5 | D5: 1431.23 | E5: 28849.91349 | F5: 160.4829063 | G5: Helium:1 | H5: 45 | I5: -0.0002944289995 | J5: 27.81231024 | K5: 19.46 | L5: 0 | M5: 27.81201581 | N5: 19.415 | O5: 0
A6: Heater | B6: Ads80K | C6: 10 | D6: 1847.700289 | E6: 37244.88271 | F6: 369.6837928 | G6: Helium:1 | H6: 90 | I6: 0.003280862987 | J6: 50.09514642 | K6: 19.63 | L6: 0 | M6: 50.09842728 | N6: 19.54 | O6: 0
A7: Heater | B7: E-106 | C7: 1851.253744 | D7: 76.59 | E7: 1543.857294 | F7: 558.8345944 | G7: Helium:1 | H7: 1950 | I7: 4.77650306 | J7: 292.3317294 | K7: 3 | L7: 0 | M7: 297.1082325 | N7: 1.05 | O7: 0
A8: Heater | B8: Liquefaction_Load | C8: 39051.18192 | D8: 25.00523947 | E8: 504.0412761 | F8: 0.757551711 | G8: Helium:1 | H8: 253 | I8: 295.4971397 | J8: 4.502860295 | K8: 1.303 | L8: 1 | M8: 300 | N8: 1.05 | O8: 0
A9: Heater | B9: Refrigeration_Load | C9: 20750 | D9: 1159.5 | E9: 23372.536 | F9: 39.52296332 | G9: Helium:1 | H9: 0 | I9: 0.002442665877 | J9: 4.500417629 | K9: 1.303 | L9: 0.9712011211 | M9: 4.502860295 | N9: 1.303 | O9: 0.02156553641
A10: Heater | B10: TS | C10: 26250 | D10: 343.1508236 | E10: 6917.037497 | F10: 49.76432106 | G10: Helium:1 | H10: 500 | I10: 14.2 | J10: 35.9 | K10: 19.5 | L10: 0 | M10: 50.1 | N10: 19 | O10: 0

Sheet PipeValve
A1: Type | B1: Name | C1: Pressure Drop | D1: Mass Flow | E1: Molar Flow | F1: Feed Volume Flow | G1: Molar composition | H1: Heat Input | I1: Delta T | J1: Feed Temperature | K1: Feed Pressure | L1: Feed Liquid Fraction | M1: Product Temperature | N1: Product Pressure | O1: Product Liquid Fraction
A2: Valve | B2: VLV-JT | C2: 1687 | D2: 1159.5 | E2: 23372.536 | F2: 32.65697437 | G2: Helium:1 | H2: --- | I2: 0.08578114159 | J2: 4.58619877 | K2: 2.99 | L2: 1 | M2: 4.500417629 | N2: 1.303 | O2: 0.9712011211
A3: Valve | B3: VLV-Dewar | C3: 20 | D3: 1139.148104 | E3: 22962.29414 | F3: 185.6643435 | G3: Helium:1 | H3: --- | I3: 0.01723958552 | J3: 4.502854709 | K3: 1.303 | L3: 0 | M3: 4.485615123 | N3: 1.283 | O3: 0.001971690051
A4: Valve | B4: VLV-T6 | C4: 150 | D4: 1160.3 | E4: 23388.66194 | F4: 30.40566577 | G4: Helium:1 | H4: --- | I4: -0.01364517658 | J4: 5.09750871 | K4: 7.99 | L4: 1 | M4: 5.111153887 | N4: 7.84 | O4: 1
A5: Pipe | B5: PIPE-LP | C5: 52.21224877 | D5: 1139.148104 | E5: 22962.29414 | F5: 22971.46647 | G5: Helium:1 | H5: 0 | I5: -0.003250299531 | J5: 297.1049822 | K5: 1.102212249 | L5: 0 | M5: 297.1082325 | N5: 1.05 | O5: 0
A6: Pipe | B6: PIPE-HP | C6: 70 | D6: 2210.700289 | E6: 44562.02853 | F6: 2525.936831 | G6: Helium:1 | H6: 0 | I6: -0.004356030394 | J6: 299.995644 | K6: 19.81 | L6: 0 | M6: 300 | N6: 19.74 | O6: 0
A7: Valve | B7: VLV-HP/LP | C7: 18760 | D7: 70.80712468 | E7: 1427.28941 | F7: 80.90392218 | G7: Helium:1 | H7: --- | I7: -1.16711283 | J7: 299.995644 | K7: 19.81 | L7: 0 | M7: 301.1627568 | N7: 1.05 | O7: 0
A8: Pipe | B8: PIPE-MP | C8: 70 | D8: 1048.810289 | E8: 21141.31628 | F8: 4606.37073 | G8: Helium:1 | H8: 0 | I8: -0.004357974367 | J8: 297.1049821 | K8: 5.07 | L8: 0 | M8: 297.1093401 | N8: 5 | O8: 0
A9: Valve | B9: VLV-T3 | C9: 520 | D9: 73.31946493 | E9: 1477.931724 | F9: 14.74602473 | G9: Helium:1 | H9: --- | I9: -0.01306046941 | J9: 50.08693953 | K9: 19.52 | L9: 0 | M9: 50.1 | N9: 19 | O9: 0
A10: Valve | B10: VLV-T4 | C10: 150 | D10: 270.28 | E10: 5448.149228 | F10: 30.37222745 | G10: Helium:1 | H10: --- | I10: 0.003055459875 | J10: 27.81201581 | K10: 19.415 | L10: 0 | M10: 27.80896035 | N10: 19.265 | O10: 0
A11: Valve | B11: VLV-T5 | C11: 150 | D11: 1160.95 | E11: 23401.76427 | F11: 41.06568701 | G11: Helium:1 | H11: --- | I11: 0.003846324841 | J11: 10.47905772 | K11: 19.375 | L11: 0 | M11: 10.4752114 | N11: 19.225 | O11: 0
A12: Valve | B12: VLV-T1 | C12: 150 | D12: 363 | E12: 7317.14581 | F12: 212.8301759 | G12: Helium:1 | H12: --- | I12: -0.009156594652 | J12: 151.5105251 | K12: 19.69 | L12: 0 | M12: 151.5196816 | N12: 19.54 | O12: 0
A13: Valve | B13: VLV-T2 | C13: 150 | D13: 362.8 | E13: 7313.114325 | F13: 147.4669351 | G13: Helium:1 | H13: --- | I13: -0.005669401428 | J13: 63.50475281 | K13: 11.98 | L13: 0 | M13: 63.51042221 | N13: 11.83 | O13: 0

Sheet Compressors
A1: Name | B1: Power | C1: Isentropic efficiency | D1: Mass Flow | E1: Molar Flow | F1: Feed Volume Flow | G1: Compression Ratio | H1: Molar composition | I1: Feed Temperature | J1: Feed Pressure | K1: Product Temperature | L1: Product Pressure
A2: C-LP/MP | B2: 2342629.915 | C2: 0.75 | D2: 1311.550468 | E2: 26437.48212 | F2: 27788.42476 | G2: 4.761904762 | H2: Helium:1 | I2: 297.3822581 | J2: 1.05 | K2: 641.1460134 | L2: 5
A3: C-MP/HP | B3: 3682893.589 | C3: 0.75 | D3: 2360.360756 | E3: 47578.7984 | F3: 10568.32252 | G3: 4.062 | H3: Helium:1 | I3: 298.7155545 | J3: 5 | K3: 598.3489415 | L3: 20.31

Sheet Turbines
A1: Name | B1: ALAT-Type | C1: Power | D1: Isentropic efficiency | E1: Cf Factor | F1: Mass Flow | G1: Molar Flow | H1: Feed Volume Flow | I1: Molar composition | J1: DHs | K1: Feed Temperature | L1: Feed Pressure | M1: Product Temperature | N1: Product Pressure | O1: Product Liquid Fraction | P1: Speed | Q1: Gas losses | R1: Bearings | S1: D Wheel | T1: x | U1: a0
A2: T-1 | B2: C5-500 | C2: 40129.25014 | D2: 0.78 | E2: 230.822895 | F2: 363 | G2: 7317.14581 | H2: 214.4477492 | I2: Helium:1 | J2: 141.7777724 | K2: 151.5196816 | L2: 19.54 | M2: 130.7109109 | N2: 12 | O2: 0 | P2: 1981.656153 | Q2: 0.1933175608 | R2: 10.91305216 | S2: 55 | T2: 0.707 | U2: 15
A3: T-2 | B3: C5-500 | C3: 26761.41495 | D3: 0.78 | E3: 247.465512 | F3: 362.8 | G3: 7313.114325 | H3: 149.3112809 | I3: Helium:1 | J3: 94.60095548 | K3: 63.51042221 | L3: 11.83 | M3: 49.638 | N3: 5.18 | O3: 0 | P3: 1612.946071 | Q3: 0.1961368314 | R3: 10.91056009 | S3: 55 | T3: 0.707 | U3: 15
A4: T-3 | B4: C5-500 | C4: 35034.01276 | D4: 0.78 | E4: 158.7487811 | F4: 416.4702886 | G4: 8394.969221 | H4: 85.96787003 | I4: Helium:1 | J4: 107.8846332 | K4: 50.1 | L4: 19 | M4: 34.42079767 | N4: 5.24 | O4: 0 | P4: 1804.726863 | Q4: 0.2510599268 | R4: 10.92740043 | S4: 52.5 | T4: 0.707 | U4: 7.5
A5: T-4 | B5: C4-500 | C5: 12504.24726 | D5: 0.78 | E5: 75.76266853 | F5: 270.28 | G5: 5448.149228 | H5: 30.59225003 | I5: Helium:1 | J5: 59.33314538 | K5: 27.80896035 | L5: 19.265 | M5: 18.85113274 | N5: 5.256480657 | O5: 0 | P5: 1878.676232 | Q5: 0.2788795923 | R5: 6.16638465 | S5: 37.5 | T5: 0.707 | U5: 7.5
A6: T-5 | B6: C5-500 | C6: 11252.14649 | D6: 0.78 | E6: 182.5389259 | F6: 1160.95 | G6: 23401.76427 | H6: 41.25813615 | I6: Helium:1 | J6: 12.43012771 | K6: 10.4752114 | L6: 19.225 | M6: 8.210319536 | N6: 8 | O6: 0 | P6: 584.7444351 | Q6: 0.6570430515 | R6: 24.86444847 | S6: 55 | T6: 0.707 | U6: 10
A7: T-6 | C7: 3100.689522 | D7: 0.73 | E7: 245.8440389 | F7: 1160.3 | G7: 23388.66194 | H7: 30.53591414 | I7: Helium:1 | J7: 3.661958862 | K7: 5.111153887 | L7: 7.84 | M7: 4.812281781 | N7: 3 | O7: 1 | P7: --- | Q7: --- | R7: --- | S7: --- | T7: --- | U7: ---

Sheet Streams Summary
A1: Name | B1: Fluid Package | C1: Property Package | D1: Temperature | E1: Pressure | F1: Vapour fraction | G1: Molecular weight | H1: Mass | I1: Flow | J1: Composition | K1: Enthalpy | L1: Entropy | M1: Heat capacity cp | N1: Density | O1: Molar | P1: Flow | Q1: Composition | R1: Enthalpy | S1: Entropy | T1: Heat capacity cp | U1: Density | V1: Volume Flow | W1: Compressibility | X1: Dynamic Viscosity | Y1: Kinematic viscosity | Z1: Thermal conductivity
A2: 1 | B2: Basis-He | C2: MBWR | D2: 4.502860295 | E2: 1.303 | F2: 0.9784344636 | G2: 4.002980232 | I2: 1159.5 | J2: Helium:1 | K2: 14.81090681 | L2: 6.016384737 | M2: 11.08085576 | N2: 22.48428426 | P2: 23372.536 | Q2: Helium:1 | R2: 59.2877672 | S2: 24.08346917 | T2: 44.35644657 | U2: 5.616886158 | V2: 185.6496721 | X2: --- | Y2: --- | Z2: ---
A3: 2 | B3: Basis-He | C3: MBWR | D3: 300 | E3: 1.05 | F3: 1 | G3: 4.002980232 | I3: 25.00523947 | J3: Helium:1 | K3: 1558.109859 | L3: 29.54223261 | M3: 5.192501137 | N3: 0.1684295341 | P3: 504.0412761 | Q3: Helium:1 | R3: 6237.082964 | S3: 118.2569732 | T3: 20.78547941 | U3: 0.04207603445 | V3: 534.4600788 | W3: 1.000475613 | X3: 8.503839348e-05 | Y3: 0.05048900355 | Z3: 0
A4: 0HPa | B4: Basis-He | C4: MBWR | D4: 300 | E4: 19.74 | F4: 1 | G4: 4.002980232 | I4: 2210.700289 | J4: Helium:1 | K4: 1564.147465 | L4: 23.45090075 | M4: 5.191137824 | N4: 3.139641794 | P4: 44562.02853 | Q4: Helium:1 | R4: 6261.251383 | S4: 93.87349213 | T4: 20.78002209 | U4: 0.7843260799 | V4: 2534.850012 | W4: 1.009026337 | X4: 8.5058332e-05 | Y4: 0.002709173135 | Z4: 0
A5: 0HPb | B5: Basis-He | C5: MBWR | D5: 299.995644 | E5: 19.81 | F5: 1 | G5: 4.002980232 | I5: 2210.700289 | J5: Helium:1 | K5: 1564.147465 | L5: 23.44348169 | M5: 5.191132976 | N5: 3.150720534 | P5: 44562.02853 | Q5: Helium:1 | R5: 6261.251383 | S5: 93.84379377 | T5: 20.78000268 | U5: 0.7870937029 | V5: 2525.936831 | W5: 1.009058519 | X5: 8.505374758e-05 | Y5: 0.002699501485 | Z5: 0
A6: 0HPc | B6: Basis-He | C6: MBWR | D6: 299.995644 | E6: 19.81 | F6: 1 | G6: 4.002980232 | I6: 2360.360756 | J6: Helium:1 | K6: 1564.147465 | L6: 23.44348169 | M6: 5.191132976 | N6: 3.150720534 | P6: 47578.7984 | Q6: Helium:1 | R6: 6261.251383 | S6: 93.84379377 | T6: 20.78000268 | U6: 0.7870937029 | V6: 2696.93825 | W6: 1.009058519 | X6: 8.505374758e-05 | Y6: 0.002699501485 | Z6: 0
A7: 0HPd | B7: Basis-He | C7: MBWR | D7: 300 | E7: 20.31 | F7: 1 | G7: 4.002980232 | I7: 2360.360756 | J7: Helium:1 | K7: 1564.331597 | L7: 23.39184747 | M7: 5.191098102 | N7: 3.229464133 | P7: 47578.7984 | Q7: Helium:1 | R7: 6261.988459 | S7: 93.63710302 | T7: 20.77986309 | U7: 0.8067649465 | V7: 2631.17916 | W7: 1.009287543 | X7: 8.505898836e-05 | Y7: 0.002633842175 | Z7: 0
A8: 0HPe | B8: Basis-He | C8: MBWR | D8: 598.3489415 | E8: 20.31 | F8: 1 | G8: 4.002980232 | I8: 2360.360756 | J8: Helium:1 | K8: 3113.026348 | L8: 26.97561159 | M8: 5.191060991 | N8: 1.627398864 | P8: 47578.7984 | Q8: Helium:1 | R8: 12461.38293 | S8: 107.98284 | T8: 20.77971453 | U8: 0.4065468149 | V8: 5221.398953 | W8: 1.0041951 | X8: 0.0009918164431 | Y8: 0.06094488974 | Z8: 0
A9: 0LPa | B9: Basis-He | C9: MBWR | D9: 297.1049822 | E9: 1.102212249 | F9: 1 | G9: 4.002980232 | I9: 1139.148104 | J9: Helium:1 | K9: 1543.094374 | L9: 29.39107666 | M9: 5.192498422 | N9: 0.1785229157 | P9: 22962.29414 | Q9: Helium:1 | R9: 6176.976277 | S9: 117.6518989 | T9: 20.78546854 | U9: 0.04459750121 | V9: 22971.46647 | W9: 1.000502175 | X9: 8.197929528e-05 | Y9: 0.04592088077 | Z9: 0
A10: 0LPd | B10: Basis-He | C10: MBWR | D10: 297.1082325 | E10: 1.05 | F10: 1 | G10: 4.002980232 | I10: 1139.148104 | J10: Helium:1 | K10: 1543.094374 | L10: 29.4919237 | M10: 5.192502334 | N10: 0.1700684378 | P10: 22962.29414 | Q10: Helium:1 | R10: 6176.976277 | S10: 118.0555876 | T10: 20.7854842 | U10: 0.04248545532 | V10: 24113.42884 | W10: 1.000478133 | X10: 8.19826284e-05 | Y10: 0.04820566911 | Z10: 0
A11: 0LPh | B11: Basis-He | C11: MBWR | D11: 297.3822581 | E11: 1.05 | F11: 1 | G11: 4.002980232 | I11: 1311.550468 | J11: Helium:1 | K11: 1544.517251 | L11: 29.49671052 | M11: 5.192502217 | N11: 0.1699118149 | P11: 26437.48212 | Q11: Helium:1 | R11: 6182.672024 | S11: 118.0747491 | T11: 20.78548373 | U11: 0.04244632874 | V11: 27788.42476 | W11: 1.000477614 | X11: 8.226863964e-05 | Y11: 0.04841843383 | Z11: 0
A12: 0MPa | B12: Basis-He | C12: MBWR | D12: 641.1460134 | E12: 5 | F12: 1 | G12: 4.002980232 | I12: 1311.550468 | J12: Helium:1 | K12: 3330.670337 | L12: 30.24454157 | M12: 5.192224941 | N12: 0.3751097651 | P12: 26437.48212 | Q12: Helium:1 | R12: 13332.60752 | S12: 121.068302 | T12: 20.7843738 | U12: 0.09370762365 | V12: 12587.20013 | W12: 1.000947728 | X12: 0.001238874934 | Y12: 0.3302699769 | Z12: 0
A13: 0MPb | B13: Basis-He | C13: MBWR | D13: 300 | E13: 5 | F13: 1 | G13: 4.002980232 | I13: 1311.550468 | J13: Helium:1 | K13: 1559.385824 | L13: 26.30122285 | M13: 5.19220318 | N13: 0.8006012046 | P13: 26437.48212 | Q13: Helium:1 | R13: 6242.190628 | S13: 105.2832752 | T13: 20.78428669 | U13: 0.2000012886 | V13: 5897.545066 | W13: 1.00228036 | X13: 8.504240971e-05 | Y13: 0.01062231848 | Z13: 0
A14: 0MPc | B14: Basis-He | C14: MBWR | D14: 297.1049821 | E14: 5.07 | F14: 1 | G14: 4.002980232 | I14: 1048.810289 | J14: Helium:1 | K14: 1544.376946 | L14: 26.22200664 | M14: 5.192203822 | N14: 0.819672853 | P14: 21141.31628 | Q14: Helium:1 | R14: 6182.110384 | S14: 104.9661742 | T14: 20.78428926 | U14: 0.204765651 | V14: 4606.37073 | W14: 1.002337971 | X14: 8.198336615e-05 | Y14: 0.01000196186 | Z14: 0
A15: 0MPd | B15: Basis-He | C15: MBWR | D15: 297.1093401 | E15: 5 | F15: 1 | G15: 4.002980232 | I15: 1048.810289 | J15: Helium:1 | K15: 1544.376946 | L15: 26.25095058 | M15: 5.192208963 | N15: 0.8083701335 | P15: 21141.31628 | Q15: Helium:1 | R15: 6182.110384 | S15: 105.0820362 | T15: 20.78430984 | U15: 0.2019420748 | V15: 4670.777509 | W15: 1.002305584 | X15: 8.198783376e-05 | Y15: 0.01014236305 | Z15: 0
A16: 0MPe | B16: Basis-He | C16: MBWR | D16: 298.7155545 | E16: 5 | F16: 1 | G16: 4.002980232 | I16: 2360.360756 | J16: Helium:1 | K16: 1552.716731 | L16: 26.27894476 | M16: 5.192205706 | N16: 0.8040347661 | P16: 47578.7984 | Q16: Helium:1 | R16: 6215.494379 | S16: 105.1940964 | T16: 20.7842968 | U16: 0.2008590399 | V16: 10568.32252 | W16: 1.002291504 | X16: 8.367483061e-05 | Y16: 0.01040686723 | Z16: 0
A17: 11LPa | B17: Basis-He | C17: MBWR | D17: 8.110373696 | E17: 1.270764361 | F17: 1 | G17: 4.002980232 | I17: 1139.148104 | J17: Helium:1 | K17: 39.24643986 | L17: 10.17396722 | M17: 5.677663432 | N17: 8.0533795 | P17: 22962.29414 | Q17: Helium:1 | R17: 157.102723 | S17: 40.72618968 | T17: 22.72757448 | U17: 2.011845933 | V17: 509.2189152 | W17: 0.9367047146 | X17: 1.343262044e-06 | Y17: 1.667948274e-05 | Z17: 0
A18: 12HPa | B18: Basis-He | C18: MBWR | D18: 5.09750871 | E18: 7.99 | F18: 0 | G18: 4.002980232 | I18: 1160.3 | J18: Helium:1 | K18: 0.7819237094 | L18: 1.769551462 | M18: 4.120670637 | N18: 137.3783436 | P18: 23388.66194 | Q18: Helium:1 | R18: 3.130025152 | S18: 7.083479523 | T18: 16.4949631 | U18: 34.31901624 | V18: 30.40566577 | W18: 0.5493223091 | X18: 0.0008849340426 | Y18: 0.000644158329 | Z18: 0
A19: 12HPb | B19: Basis-He | C19: MBWR | D19: 5.111153887 | E19: 7.84 | F19: 0 | G19: 4.002980232 | I19: 1160.3 | J19: Helium:1 | K19: 0.7819237094 | L19: 1.79093885 | M19: 4.166987924 | N19: 136.7923679 | P19: 23388.66194 | Q19: Helium:1 | R19: 3.130025152 | S19: 7.169092812 | T19: 16.68037029 | U19: 34.17263138 | V19: 30.53591414 | W19: 0.539873423 | X19: 0.000873331513 | Y19: 0.0006384358473 | Z19: 0
A20: 12LPa | B20: Basis-He | C20: MBWR | D20: 4.6 | E20: 1.281501758 | F20: 1 | G20: 4.002980232 | I20: 1139.148104 | J20: Helium:1 | K20: 16.4404425 | L20: 6.397835816 | M20: 9.620577705 | N20: 20.00285759 | P20: 22962.29414 | Q20: Helium:1 | R20: 65.81076633 | S20: 25.6104103 | T20: 38.51098237 | U20: 4.996991348 | V20: 205.0173659 | W20: 0.6705420869 | X20: 1.064411341e-06 | Y20: 5.321296402e-06 | Z20: 0
A21: 12MPa | B21: Basis-He | C21: MBWR | D21: 4.812281781 | E21: 3 | F21: 0 | G21: 4.002980232 | I21: 1160.3 | J21: Helium:1 | K21: -1.890393383 | L21: 1.999310862 | M21: 5.722187652 | N21: 122.8104175 | P21: 23388.66194 | Q21: Helium:1 | R21: -7.567207344 | S21: 8.00320186 | T21: 22.90580406 | U21: 30.67974619 | V21: 34.01242406 | W21: 0.2443946572 | X21: 0.001037562147 | Y21: 0.000844848644 | Z21: 0
A22: 12MPb | B22: Basis-He | C22: MBWR | D22: 4.812281781 | E22: 3 | F22: 0 | G22: 4.002980232 | I22: 1159.5 | J22: Helium:1 | K22: -1.890393383 | L22: 1.999310862 | M22: 5.722187652 | N22: 122.8104175 | P22: 23372.536 | Q22: Helium:1 | R22: -7.567207344 | S22: 8.00320186 | T22: 22.90580406 | U22: 30.67974619 | V22: 33.98897328 | W22: 0.2443946572 | X22: 0.001037562147 | Y22: 0.000844848644 | Z22: 0
A23: 13LPa | B23: Basis-He | C23: MBWR | D23: 4.500417629 | E23: 1.303 | F23: 0.02879887894 | G23: 4.002980232 | I23: 1159.5 | J23: Helium:1 | K23: -3.084737861 | L23: 2.048226978 | M23: 6.873947515 | N23: 105.6145504 | P23: 23372.536 | Q23: Helium:1 | R23: -12.34814468 | S23: 8.199012105 | T23: 27.51627602 | U23: 26.38398 | V23: 39.52296332 | X23: --- | Y23: --- | Z23: ---
A24: 13LPb | B24: Basis-He | C24: MBWR | D24: 4.502860295 | E24: 1.303 | F24: 1 | G24: 4.002980232 | I24: 1134.494761 | J24: Helium:1 | K24: 15.21692196 | L24: 6.106413872 | M24: 11.17583202 | N24: 22.08953594 | P24: 22868.49472 | Q24: Helium:1 | R24: 60.9130378 | S24: 24.44385402 | T24: 44.73663466 | U24: 5.518272551 | V24: 184.8921204 | W24: 0.6307046902 | X24: 1.06613218e-06 | Y24: 4.826412754e-06 | Z24: 0
A25: 13LPc | B25: Basis-He | C25: MBWR | D25: 4.502854709 | E25: 1.303 | F25: 1 | G25: 4.002980232 | I25: 1139.148104 | J25: Helium:1 | K25: 15.21685935 | L25: 6.106649343 | M25: 11.17423046 | N25: 22.08788772 | P25: 22962.29414 | Q25: Helium:1 | R25: 60.91278718 | S25: 24.44479661 | T25: 44.73022364 | U25: 5.517860803 | V25: 185.6643435 | W25: 0.6307525365 | X25: 1.066119069e-06 | Y25: 4.82671355e-06 | Z25: 0
A26: 13LPd | B26: Basis-He | C26: MBWR | D26: 4.485615123 | E26: 1.283 | F26: 0.9980283099 | G26: 4.002980232 | I26: 1139.148104 | J26: Helium:1 | K26: 15.21685935 | L26: 6.126724891 | M26: 10.97550446 | N26: 21.72848578 | P26: 22962.29414 | Q26: Helium:1 | R26: 60.91278718 | S26: 24.52515863 | T26: 43.93472738 | U26: 5.428077212 | V26: 188.735341 | X26: --- | Y26: --- | Z26: ---
A27: 13MPa | B27: Basis-He | C27: MBWR | D27: 4.58619877 | E27: 2.99 | F27: 0 | G27: 4.002980232 | I27: 1159.5 | J27: Helium:1 | K27: -3.084737861 | L27: 1.747804211 | M27: 4.89386395 | N27: 127.8195571 | P27: 23372.536 | Q27: Helium:1 | R27: -12.34814468 | S27: 6.996425707 | T27: 19.59004065 | U27: 31.93109875 | V27: 32.65697437 | W27: 0.2455713605 | X27: 0.00131851653 | Y27: 0.001031545219 | Z27: 0
A28: 1HPa | B28: Basis-He | C28: MBWR | D28: 151.5105251 | E28: 19.69 | F28: 1 | G28: 4.002980232 | I28: 2210.700289 | J28: Helium:1 | K28: 792.9947059 | L28: 19.90823285 | M28: 5.198607646 | N28: 6.140106753 | P28: 44562.02853 | Q28: Helium:1 | R28: 3174.342132 | S28: 79.69226257 | T28: 20.80992364 | U28: 1.533883856 | V28: 1296.153529 | W28: 1.01902233 | X28: 1.174255058e-05 | Y28: 0.000191243427 | Z28: 0
A29: 1HPb | B29: Basis-He | C29: MBWR | D29: 151.5105251 | E29: 19.69 | F29: 1 | G29: 4.002980232 | I29: 1847.700289 | J29: Helium:1 | K29: 792.9947059 | L29: 19.90823285 | M29: 5.198607646 | N29: 6.140106753 | P29: 37244.88271 | Q29: Helium:1 | R29: 3174.342132 | S29: 79.69226257 | T29: 20.80992364 | U29: 1.533883856 | V29: 1083.323354 | W29: 1.01902233 | X29: 1.174255058e-05 | Y29: 0.000191243427 | Z29: 0
A30: 1LPa | B30: Basis-He | C30: MBWR | D30: 147.0302368 | E30: 1.147658908 | F30: 1 | G30: 4.002980232 | I30: 1139.148104 | J30: Helium:1 | K30: 763.828664 | L30: 25.65442082 | M30: 5.192968982 | N30: 0.3753767272 | P30: 22962.29414 | Q30: Helium:1 | R30: 3057.591043 | S30: 102.6941394 | T30: 20.78735218 | U30: 0.09377431449 | V30: 10924.84663 | W30: 1.001141678 | X30: 1.126344578e-05 | Y30: 0.00300057115 | Z30: 0
A31: 1MPa | B31: Basis-He | C31: MBWR | D31: 147.0302778 | E31: 5.12 | F31: 1 | G31: 4.002980232 | I31: 1048.810289 | J31: Helium:1 | K31: 765.0899758 | L31: 22.54863362 | M31: 5.194322412 | N31: 1.668070015 | P31: 21141.31628 | Q31: Helium:1 | R31: 3062.640049 | S31: 90.26173465 | T31: 20.79276994 | U31: 0.4167070329 | V31: 2263.524315 | W31: 1.00509154 | X31: 1.12719085e-05 | Y31: 0.0006757455259 | Z31: 0
A32: 2HPa | B32: Basis-He | C32: MBWR | D32: 130.7109109 | E32: 19.67 | F32: 1 | G32: 4.002980232 | I32: 1847.700289 | J32: Helium:1 | K32: 684.8158173 | L32: 19.14239975 | M32: 5.203218502 | N32: 7.088350307 | P32: 37244.88271 | Q32: Helium:1 | R32: 2741.304179 | S32: 76.62664779 | T32: 20.82838081 | U32: 1.770768251 | V32: 938.4018497 | W32: 1.022125107 | X32: 1.006775498e-05 | Y32: 0.0001420324129 | Z32: 0
A33: 2LPa | B33: Basis-He | C33: MBWR | D33: 129.4336612 | E33: 1.15714777 | F33: 1 | G33: 4.002980232 | I33: 1139.148104 | J33: Helium:1 | K33: 672.4512686 | L33: 24.9752149 | M33: 5.193221717 | N33: 0.4298732173 | P33: 22962.29414 | Q33: Helium:1 | R33: 2691.809135 | S33: 99.97529153 | T33: 20.78836388 | U33: 0.1073882938 | V33: 9539.866657 | W33: 1.001285459 | X33: 9.937193286e-06 | Y33: 0.00231165676 | Z33: 0
A34: 2MPa | B34: Basis-He | C34: MBWR | D34: 129.4336331 | E34: 5.14 | F34: 1 | G34: 4.002980232 | I34: 1048.810289 | J34: Helium:1 | K34: 673.6847159 | L34: 21.87831318 | M34: 5.195435656 | N34: 1.900866151 | P34: 21141.31628 | Q34: Helium:1 | R34: 2696.746601 | S34: 87.57845516 | T34: 20.79722623 | U34: 0.4748627375 | V34: 1986.313995 | W34: 1.005822045 | X34: 9.946927525e-06 | Y34: 0.0005232839524 | Z34: 0
A35: 3HPa | B35: Basis-He | C35: MBWR | D35: 63.50475281 | E35: 19.65 | F35: 1 | G35: 4.002980232 | I35: 1847.700289 | J35: Helium:1 | K35: 333.637232 | L35: 15.36964483 | M35: 5.273459456 | N35: 14.29823161 | P35: 37244.88271 | Q35: Helium:1 | R35: 1335.543244 | S35: 61.52438445 | T35: 21.10955396 | U35: 3.571896632 | V35: 465.2128474 | W35: 1.041911202 | X35: 6.292563084e-06 | Y35: 4.400938002e-05 | Z35: 0
A36: 3LPa | B36: Basis-He | C36: MBWR | D36: 61.16375413 | E36: 1.20658974 | F36: 1 | G36: 4.002980232 | I36: 1139.148104 | J36: Helium:1 | K36: 317.8190021 | L36: 20.99414551 | M36: 5.198357553 | N36: 0.9472789923 | P36: 22962.29414 | Q36: Helium:1 | R36: 1272.223183 | S36: 84.03914948 | T36: 20.80892252 | U36: 0.236643435 | V36: 4329.171454 | W36: 1.002638318 | X36: 5.983291763e-06 | Y36: 0.0006316293101 | Z36: 0
A37: 3MPa | B37: Basis-He | C37: MBWR | D37: 61.1637541 | E37: 5.16 | F37: 1 | G37: 4.002980232 | I37: 1048.810289 | J37: Helium:1 | K37: 318.5520519 | L37: 17.96993875 | M37: 5.216991463 | N37: 4.016389932 | P37: 21141.31628 | Q37: Helium:1 | R37: 1275.157567 | S37: 71.93330959 | T37: 20.8835137 | U37: 1.003349929 | V37: 940.0773089 | W37: 1.011291619 | X37: 6.005881703e-06 | Y37: 0.0001495343282 | Z37: 0
A38: 4HPa | B38: Basis-He | C38: MBWR | D38: 50.09514642 | E38: 19.63 | F38: 1 | G38: 4.002980232 | I38: 1847.700289 | J38: Helium:1 | K38: 262.5726197 | L38: 14.11443895 | M38: 5.332046744 | N38: 17.9930015 | P38: 37244.88271 | Q38: Helium:1 | R38: 1051.073006 | S38: 56.49982012 | T38: 21.34407771 | U38: 4.494901412 | V38: 369.6837928 | W38: 1.048522473 | X38: 5.203508279e-06 | Y38: 2.891962344e-05 | Z38: 0
A39: 4HPb | B39: Basis-He | C39: MBWR | D39: 50.09842728 | E39: 19.54 | F39: 1 | G39: 4.002980232 | I39: 1847.700289 | J39: Helium:1 | K39: 262.5780318 | L39: 14.12455219 | M39: 5.33145267 | N39: 17.91321735 | P39: 37244.88271 | Q39: Helium:1 | R39: 1051.094671 | S39: 56.54030319 | T39: 21.34169965 | U39: 4.474970225 | V39: 371.3303372 | W39: 1.048295162 | X39: 5.20281753e-06 | Y39: 2.904457322e-05 | Z39: 0
A40: 4LPa | B40: Basis-He | C40: MBWR | D40: 49.638 | E40: 1.22032362 | F40: 1 | G40: 4.002980232 | I40: 1139.148104 | J40: Helium:1 | K40: 257.8863284 | L40: 19.8848278 | M40: 5.202234325 | N40: 1.180090378 | P40: 22962.29414 | Q40: Helium:1 | R40: 1032.313875 | S40: 79.5985726 | T40: 20.82444117 | U40: 0.2948029492 | V40: 3475.100932 | W40: 1.003002888 | X40: 4.997246504e-06 | Y40: 0.0004234630328 | Z40: 0
A41: 4MPa | B41: Basis-He | C41: MBWR | D41: 49.638 | E41: 5.18 | F41: 1 | G41: 4.002980232 | I41: 686.2102886 | J41: Helium:1 | K41: 258.3439154 | L41: 16.87103066 | M41: 5.232871755 | N41: 4.960890168 | P41: 13832.23344 | Q41: Helium:1 | R41: 1034.145586 | S41: 67.53440222 | T41: 20.94708219 | U41: 1.239299192 | V41: 497.9664849 | W41: 1.012774092 | X41: 5.026275069e-06 | Y41: 0.0001013180074 | Z41: 0
A42: 4MPb | B42: Basis-He | C42: MBWR | D42: 49.638 | E42: 5.18 | F42: 1 | G42: 4.002980232 | I42: 1048.810289 | J42: Helium:1 | K42: 258.3439154 | L42: 16.87103022 | M42: 5.232871762 | N42: 4.960890576 | P42: 21141.31628 | Q42: Helium:1 | R42: 1034.145586 | S42: 67.53440048 | T42: 20.94708222 | U42: 1.239299294 | V42: 761.0966179 | W42: 1.012774008 | X42: 5.026275072e-06 | Y42: 0.0001013179992 | Z42: 0
A43: 5HPa | B43: Basis-He | C43: MBWR | D43: 50.08693953 | E43: 19.52 | F43: 1 | G43: 4.002980232 | I43: 1847.700289 | J43: Helium:1 | K43: 262.514103 | L43: 14.1255053 | M43: 5.331395973 | N43: 17.89974441 | P43: 37244.88271 | Q43: Helium:1 | R43: 1050.838765 | S43: 56.5441185 | T43: 21.34147269 | U43: 4.471604497 | V43: 371.6098335 | W43: 1.048250789 | X43: 5.201629005e-06 | Y43: 2.905979486e-05 | Z43: 0
A44: 5HPb | B44: Basis-He | C44: MBWR | D44: 50.08693953 | E44: 19.52 | F44: 1 | G44: 4.002980232 | I44: 1774.380824 | J44: Helium:1 | K44: 262.514103 | L44: 14.1255053 | M44: 5.331395973 | N44: 17.89974441 | P44: 35766.95099 | Q44: Helium:1 | R44: 1050.838765 | S44: 56.5441185 | T44: 21.34147269 | U44: 4.471604497 | V44: 356.8638088 | W44: 1.048250789 | X44: 5.201629005e-06 | Y44: 2.905979486e-05 | Z44: 0
A45: 5LPa | B45: Basis-He | C45: MBWR | D45: 49.62487732 | E45: 1.221572155 | F45: 1 | G45: 4.002980232 | I45: 1139.148104 | J45: Helium:1 | K45: 257.8182034 | L45: 19.88132465 | M45: 5.202250151 | N45: 1.181606124 | P45: 22962.29414 | Q45: Helium:1 | R45: 1032.041172 | S45: 79.58454956 | T45: 20.82450452 | U45: 0.2951816036 | V45: 3470.643126 | W45: 1.003006287 | X45: 4.996084242e-06 | Y45: 0.000422821458 | Z45: 0
A46: 5MPa | B46: Basis-He | C46: MBWR | D46: 49.62487683 | E46: 5.2 | F46: 1 | G46: 4.002980232 | I46: 686.2102886 | J46: Helium:1 | K46: 258.2775846 | L46: 16.8615873 | M46: 5.233048621 | N46: 4.981110782 | P46: 13832.23344 | Q46: Helium:1 | R46: 1033.880065 | S46: 67.49660065 | T46: 20.94779018 | U46: 1.244350582 | V46: 495.9450104 | W46: 1.012824996 | X46: 5.025273094e-06 | Y46: 0.0001008865957 | Z46: 0
A47: 6HPa | B47: Basis-He | C47: MBWR | D47: 35.9 | E47: 19.5 | F47: 1 | G47: 4.002980232 | I47: 1774.380824 | J47: Helium:1 | K47: 186.0171279 | L47: 12.3308906 | M47: 5.475714529 | N47: 24.82386856 | P47: 35766.95099 | Q47: Helium:1 | R47: 744.622886 | S47: 49.36031132 | T47: 21.91917702 | U47: 6.201346777 | V47: 257.3237507 | W47: 1.053482704 | X47: 4.013452175e-06 | Y47: 1.616771441e-05 | Z47: 0
A48: 6HPb | B48: Basis-He | C48: MBWR | D48: 35.9 | E48: 19.5 | F48: 1 | G48: 4.002980232 | I48: 1431.23 | J48: Helium:1 | K48: 186.0171279 | L48: 12.3308906 | M48: 5.475714529 | N48: 24.82386856 | P48: 28849.91349 | Q48: Helium:1 | R48: 744.622886 | S48: 49.36031132 | T48: 21.91917702 | U48: 6.201346777 | V48: 207.5594297 | W48: 1.053482704 | X48: 4.013452175e-06 | Y48: 1.616771441e-05 | Z48: 0
A49: 6LPa | B49: Basis-He | C49: MBWR | D49: 35.36108098 | E49: 1.249789037 | F49: 1 | G49: 4.002980232 | I49: 1139.148104 | J49: Helium:1 | K49: 183.5469048 | L49: 18.06908247 | M49: 5.213921497 | N49: 1.696156914 | P49: 22962.29414 | Q49: Helium:1 | R49: 734.7346317 | S49: 72.33017995 | T49: 20.87122468 | U49: 0.4237235298 | V49: 2417.779358 | W49: 1.003233119 | X49: 3.709180484e-06 | Y49: 0.0002186814471 | Z49: 0
A50: 6MPa | B50: Basis-He | C50: MBWR | D50: 35.36108089 | E50: 5.22 | F50: 1 | G50: 4.002980232 | I50: 686.2102886 | J50: Helium:1 | K50: 183.3606713 | L50: 15.07318031 | M50: 5.279546397 | N50: 7.011455082 | P50: 13832.23344 | Q50: Helium:1 | R50: 733.9891424 | S50: 60.33764281 | T50: 21.13391986 | U50: 1.751558758 | V50: 352.3315788 | W50: 1.013662838 | X50: 3.753411644e-06 | Y50: 5.35325635e-05 | Z50: 0
A51: 7HPa | B51: Basis-He | C51: MBWR | D51: 34.75684122 | E51: 19.48 | F51: 1 | G51: 4.002980232 | I51: 1431.23 | J51: Helium:1 | K51: 179.7466407 | L51: 12.15549863 | M51: 5.495017083 | N51: 25.61584141 | P51: 28849.91349 | Q51: Helium:1 | R51: 719.5222496 | S51: 48.65822071 | T51: 21.99644476 | U51: 6.399192582 | V51: 201.1422509 | W51: 1.053408302 | X51: 3.923247925e-06 | Y51: 1.531570977e-05 | Z51: 0
A52: 7LPa | B52: Basis-He | C52: MBWR | D52: 34.42079767 | E52: 1.251037571 | F52: 1 | G52: 4.002980232 | I52: 1139.148104 | J52: Helium:1 | K52: 178.6436596 | L52: 17.92646332 | M52: 5.215244129 | N52: 1.744274855 | P52: 22962.29414 | Q52: Helium:1 | R52: 715.1070381 | S52: 71.75927829 | T52: 20.87651916 | U52: 0.435744059 | V52: 2351.081976 | W52: 1.00320852 | X52: 3.625798201e-06 | Y52: 0.0002078685129 | Z52: 0
A53: 7MPa | B53: Basis-He | C53: MBWR | D53: 34.42079767 | E53: 5.24 | F53: 1 | G53: 4.002980232 | I53: 270 | J53: Helium:1 | K53: 178.3928254 | L53: 14.92273964 | M53: 5.285139382 | N53: 7.230892899 | P53: 5442.505148 | Q53: Helium:1 | R53: 714.1029536 | S53: 59.73543179 | T53: 21.15630847 | U53: 1.806377369 | V53: 134.4232329 | W53: 1.013619921 | X53: 3.671796198e-06 | Y53: 5.07792917e-05 | Z53: 0
A54: 7MPb | B54: Basis-He | C54: MBWR | D54: 34.42079767 | E54: 5.24 | F54: 1 | G54: 4.002980232 | I54: 686.2102886 | J54: Helium:1 | K54: 178.3928254 | L54: 14.92273774 | M54: 5.285139454 | N54: 7.230895504 | P54: 13832.23344 | Q54: Helium:1 | R54: 714.1029536 | S54: 59.7354242 | T54: 21.15630876 | U54: 1.806378019 | V54: 341.6391562 | W54: 1.013619556 | X54: 3.671796222e-06 | Y54: 5.077927375e-05 | Z54: 0
A55: 8HPa | B55: Basis-He | C55: MBWR | D55: 27.81231024 | E55: 19.46 | F55: 1 | G55: 4.002980232 | I55: 1431.23 | J55: Helium:1 | K55: 141.0551575 | L55: 10.91521426 | M55: 5.666432476 | N55: 32.1057745 | P55: 28849.91349 | Q55: Helium:1 | R55: 564.641007 | S55: 43.69338691 | T55: 22.68261719 | U55: 8.02046791 | V55: 160.4829063 | W55: 1.04925085 | X55: 3.423261063e-06 | Y55: 1.06624466e-05 | Z55: 0
A56: 8HPb | B56: Basis-He | C56: MBWR | D56: 27.81201581 | E56: 19.415 | F56: 1 | G56: 4.002980232 | I56: 1431.23 | J56: Helium:1 | K56: 141.058651 | L56: 10.92038395 | M56: 5.665598674 | N56: 32.03610935 | P56: 28849.91349 | Q56: Helium:1 | R56: 564.6549914 | S56: 43.7140811 | T56: 22.67927949 | U56: 8.00306459 | V56: 160.8318895 | W56: 1.049112037 | X56: 3.422091194e-06 | Y56: 1.068198125e-05 | Z56: 0
A57: 8HPc | B57: Basis-He | C57: MBWR | D57: 27.81201581 | E57: 19.415 | F57: 1 | G57: 4.002980232 | I57: 1160.95 | J57: Helium:1 | K57: 141.058651 | L57: 10.92038395 | M57: 5.665598674 | N57: 32.03610935 | P57: 23401.76427 | Q57: Helium:1 | R57: 564.6549914 | S57: 43.7140811 | T57: 22.67927949 | U57: 8.00306459 | V57: 130.4596621 | W57: 1.049112037 | X57: 3.422091194e-06 | Y57: 1.068198125e-05 | Z57: 0
A58: 8LPa | B58: Basis-He | C58: MBWR | D58: 26.90773219 | E58: 1.252286071 | F58: 1 | G58: 4.002980232 | I58: 1139.148104 | J58: Helium:1 | K58: 139.4088377 | L58: 16.6383461 | M58: 5.231083813 | N58: 2.235225096 | P58: 22962.29414 | Q58: Helium:1 | R58: 558.0508216 | S58: 66.60297054 | T58: 20.9399251 | U58: 0.558390241 | V58: 1834.68465 | W58: 1.002448103 | X58: 2.979061698e-06 | Y58: 0.0001332779281 | Z58: 0
A59: 8MPa | B59: Basis-He | C59: MBWR | D59: 26.90773141 | E59: 5.241248535 | F59: 1 | G59: 4.002980232 | I59: 270 | J59: Helium:1 | K59: 138.4737935 | L59: 13.61352992 | M59: 5.349296197 | N59: 9.278311739 | P59: 5442.505148 | Q59: Helium:1 | R59: 554.307858 | S59: 54.49469115 | T59: 21.41312693 | U59: 2.317851001 | V59: 104.7604378 | W59: 1.010753886 | X59: 3.042140327e-06 | Y59: 3.278764944e-05 | Z59: 0
A60: 9HPa | B60: Basis-He | C60: MBWR | D60: 19.04037229 | E60: 19.395 | F60: 1 | G60: 4.002980232 | I60: 1160.95 | J60: Helium:1 | K60: 89.53059637 | L60: 8.690876519 | M60: 6.168922865 | N60: 48.35090517 | P60: 23401.76427 | Q60: Helium:1 | R60: 358.3892075 | S60: 34.78940691 | T60: 24.69407628 | U60: 12.07872694 | V60: 86.43933315 | W60: 1.014300056 | X60: 3.050323816e-06 | Y60: 6.308721224e-06 | Z60: 0
A61: 9LPa | B61: Basis-He | C61: MBWR | D61: 18.85113274 | E61: 1.267518171 | F61: 1 | G61: 4.002980232 | I61: 1139.148104 | J61: Helium:1 | K61: 97.11573026 | L61: 14.74477265 | M61: 5.273892393 | N61: 3.242457494 | P61: 22962.29414 | Q61: Helium:1 | R61: 388.7523485 | S61: 59.02303345 | T61: 21.111287 | U61: 0.8100108683 | V61: 1264.760812 | W61: 0.9983875601 | X61: 2.312503919e-06 | Y61: 7.131948294e-05 | Z61: 0
A62: From Buffer | B62: Basis-He | C62: MBWR | D62: 300 | E62: 1.05 | F62: 1 | G62: 4.002980232 | I62: 0 | J62: Helium:1 | K62: 1558.109859 | L62: 29.54223261 | M62: 5.192501137 | N62: 0.1684295341 | P62: 0 | Q62: Helium:1 | R62: 6237.082964 | S62: 118.2569732 | T62: 20.78547941 | U62: 0.04207603445 | V62: 0 | W62: 1.000475613 | X62: 8.503839348e-05 | Y62: 0.05048900355 | Z62: 0
A63: From TS | B63: Basis-He | C63: MBWR | D63: 50.1 | E63: 19 | F63: 1 | G63: 4.002980232 | I63: 343.1508236 | J63: Helium:1 | K63: 262.514103 | L63: 14.18440439 | M63: 5.327978367 | N63: 17.43964968 | P63: 6917.037497 | Q63: Helium:1 | R63: 1050.838765 | S63: 56.77989038 | T63: 21.32779208 | U63: 4.356666451 | V63: 70.83530848 | W63: 1.046971424 | X63: 5.197157526e-06 | Y63: 2.980081378e-05 | Z63: 0
A64: From Turbines | B64: Basis-He | C64: MBWR | D64: 292.3317294 | E64: 3 | F64: 1 | G64: 4.002980232 | I64: 76.59 | J64: Helium:1 | K64: 1518.923415 | L64: 27.227521 | M64: 5.192363 | N64: 0.4933910727 | P64: 1543.857294 | Q64: Helium:1 | R64: 6080.220406 | S64: 108.9912284 | T64: 20.78492645 | U64: 0.1232559353 | V64: 558.8345944 | W64: 1.001407228 | X64: 7.711808443e-05 | Y64: 0.01563021479 | Z64: 0
A65: From Turbines 2 | B65: Basis-He | C65: MBWR | D65: 297.1082325 | E65: 1.05 | F65: 1 | G65: 4.002980232 | I65: 76.59 | J65: Helium:1 | K65: 1543.094374 | L65: 29.49193813 | M65: 5.192502333 | N65: 0.1700679653 | P65: 1543.857294 | Q65: Helium:1 | R65: 6176.976277 | S65: 118.0556454 | T65: 20.7854842 | U65: 0.04248533729 | V65: 1621.25771 | W65: 1.000480912 | X65: 8.198262839e-05 | Y65: 0.04820580304 | Z65: 0
A66: HP-LPa | B66: Basis-He | C66: MBWR | D66: 299.995644 | E66: 19.81 | F66: 1 | G66: 4.002980232 | I66: 70.80712468 | J66: Helium:1 | K66: 1564.147465 | L66: 23.44348169 | M66: 5.191132976 | N66: 3.150720534 | P66: 1427.28941 | Q66: Helium:1 | R66: 6261.251383 | S66: 93.84379377 | T66: 20.78000268 | U66: 0.7870937029 | V66: 80.90392218 | W66: 1.009058519 | X66: 8.505374758e-05 | Y66: 0.002699501485 | Z66: 0
A67: HP-LPb | B67: Basis-He | C67: MBWR | D67: 301.1627568 | E67: 1.05 | F67: 1 | G67: 4.002980232 | I67: 70.80712468 | J67: Helium:1 | K67: 1564.147465 | L67: 29.56230372 | M67: 5.192500677 | N67: 0.1677800949 | P67: 1427.28941 | Q67: Helium:1 | R67: 6261.251383 | S67: 118.3373174 | T67: 20.78547756 | U67: 0.04191379551 | V67: 1519.28421 | W67: 1.00047055 | X67: 8.629064128e-05 | Y67: 0.05143079776 | Z67: 0
A68: LevelCompensation | B68: Basis-He | C68: MBWR | D68: 4.501489978 | E68: 1.303 | F68: 1 | G68: 4.002980232 | I68: 4.653343054 | J68: Helium:1 | K68: 15.20159551 | L68: 6.103009634 | M68: 11.19906609 | N68: 22.1133881 | P68: 93.79942047 | Q68: Helium:1 | R68: 60.85168632 | S68: 24.43022692 | T68: 44.82964018 | U68: 5.524231153 | V68: 0.757551711 | W68: 0.6302161814 | X68: 1.066110276e-06 | Y68: 4.821107787e-06 | Z68: 0
A69: LHe | B69: Basis-He | C69: MBWR | D69: 4.502860295 | E69: 1.303 | F69: 0 | G69: 4.002980232 | I69: 25.00523947 | J69: Helium:1 | K69: -3.610114729 | L69: 1.931737549 | M69: 6.771756033 | N69: 118.8286698 | P69: 504.0412761 | Q69: Helium:1 | R69: -14.4512179 | S69: 7.732707221 | T69: 27.10720554 | U69: 29.68505035 | V69: 0.757551711 | W69: 0.1172442135 | X69: 0.00136848066 | Y69: 0.001151641824 | Z69: 0
A70: T1_Loss | B70: Basis-He | C70: MBWR | D70: 130.7109109 | E70: 12 | F70: 1 | G70: 4.002980232 | I70: 0.2 | J70: Helium:1 | K70: 682.4458074 | L70: 20.1686384 | M70: 5.199045331 | N70: 4.361144223 | P70: 4.031485295 | Q70: Helium:1 | R70: 2731.817077 | S70: 80.73466083 | T70: 20.81167569 | U70: 1.089474334 | V70: 0.1650942879 | W70: 1.013504464 | X70: 1.004490756e-05 | Y70: 0.0002303273417 | Z70: 0
A71: T1Ha | B71: Basis-He | C71: MBWR | D71: 151.5105251 | E71: 19.69 | F71: 1 | G71: 4.002980232 | I71: 363 | J71: Helium:1 | K71: 792.9947059 | L71: 19.90823285 | M71: 5.198607646 | N71: 6.140106753 | P71: 7317.14581 | Q71: Helium:1 | R71: 3174.342132 | S71: 79.69226257 | T71: 20.80992364 | U71: 1.533883856 | V71: 212.8301759 | W71: 1.01902233 | X71: 1.174255058e-05 | Y71: 0.000191243427 | Z71: 0
A72: T1Hb | B72: Basis-He | C72: MBWR | D72: 151.5196816 | E72: 19.54 | F72: 1 | G72: 4.002980232 | I72: 363 | J72: Helium:1 | K72: 792.9947059 | L72: 19.92445595 | M72: 5.198558803 | N72: 6.093792099 | P72: 7317.14581 | Q72: Helium:1 | R72: 3174.342132 | S72: 79.7572033 | T72: 20.80972812 | U72: 1.522313813 | V72: 214.4477492 | W72: 1.018883635 | X72: 1.174309904e-05 | Y72: 0.000192705935 | Z72: 0
A73: T1La | B73: Basis-He | C73: MBWR | D73: 130.7109109 | E73: 12 | F73: 1 | G73: 4.002980232 | I73: 363 | J73: Helium:1 | K73: 682.4458074 | L73: 20.1686384 | M73: 5.199045331 | N73: 4.361144223 | P73: 7317.14581 | Q73: Helium:1 | R73: 2731.817077 | S73: 80.73466083 | T73: 20.81167569 | U73: 1.089474334 | V73: 299.6461326 | W73: 1.013504464 | X73: 1.004490756e-05 | Y73: 0.0002303273417 | Z73: 0
A74: T1Lb | B74: Basis-He | C74: MBWR | D74: 130.7109109 | E74: 12 | F74: 1 | G74: 4.002980232 | I74: 362.8 | J74: Helium:1 | K74: 682.4458074 | L74: 20.1686384 | M74: 5.199045331 | N74: 4.361144223 | P74: 7313.114325 | Q74: Helium:1 | R74: 2731.817077 | S74: 80.73466083 | T74: 20.81167569 | U74: 1.089474334 | V74: 299.4810383 | W74: 1.013504464 | X74: 1.004490756e-05 | Y74: 0.0002303273417 | Z74: 0
A75: T2_Loss | B75: Basis-He | C75: MBWR | D75: 49.638 | E75: 5.18 | F75: 1 | G75: 4.002980232 | I75: 0.2 | J75: Helium:1 | K75: 258.3439154 | L75: 16.87103066 | M75: 5.232871755 | N75: 4.960890168 | P75: 4.031485295 | Q75: Helium:1 | R75: 1034.145586 | S75: 67.53440222 | T75: 20.94708219 | U75: 1.239299192 | V75: 0.145135243 | W75: 1.012774092 | X75: 5.026275069e-06 | Y75: 0.0001013180074 | Z75: 0
A76: T2Ha | B76: Basis-He | C76: MBWR | D76: 63.50475281 | E76: 11.98 | F76: 1 | G76: 4.002980232 | I76: 362.8 | J76: Helium:1 | K76: 332.1074627 | L76: 16.40704085 | M76: 5.243194276 | N76: 8.856765071 | P76: 7313.114325 | Q76: Helium:1 | R76: 1329.419608 | S76: 65.67706019 | T76: 20.98840304 | U76: 2.212542795 | V76: 147.4669351 | W76: 1.025491755 | X76: 6.235783083e-06 | Y76: 7.040700564e-05 | Z76: 0
A77: T2Hb | B77: Basis-He | C77: MBWR | D77: 63.51042221 | E77: 11.83 | F77: 1 | G77: 4.002980232 | I77: 362.8 | J77: Helium:1 | K77: 332.1074627 | L77: 16.43416153 | M77: 5.242567193 | N77: 8.747363174 | P77: 7313.114325 | Q77: Helium:1 | R77: 1329.419608 | S77: 65.78562376 | T77: 20.98589284 | U77: 2.185212683 | V77: 149.3112809 | W77: 1.025225257 | X77: 6.235178429e-06 | Y77: 7.128066258e-05 | Z77: 0
A78: T2La | B78: Basis-He | C78: MBWR | D78: 49.638 | E78: 5.18 | F78: 1 | G78: 4.002980232 | I78: 362.8 | J78: Helium:1 | K78: 258.3439154 | L78: 16.87103066 | M78: 5.232871755 | N78: 4.960890168 | P78: 7313.114325 | Q78: Helium:1 | R78: 1034.145586 | S78: 67.53440222 | T78: 20.94708219 | U78: 1.239299192 | V78: 263.2753308 | W78: 1.012774092 | X78: 5.026275069e-06 | Y78: 0.0001013180074 | Z78: 0
A79: T2Lb | B79: Basis-He | C79: MBWR | D79: 49.638 | E79: 5.18 | F79: 1 | G79: 4.002980232 | I79: 362.6 | J79: Helium:1 | K79: 258.3439154 | L79: 16.87103066 | M79: 5.232871755 | N79: 4.960890168 | P79: 7309.08284 | Q79: Helium:1 | R79: 1034.145586 | S79: 67.53440222 | T79: 20.94708219 | U79: 1.239299192 | V79: 263.1301956 | W79: 1.012774092 | X79: 5.026275069e-06 | Y79: 0.0001013180074 | Z79: 0
A80: T3_Loss | B80: Basis-He | C80: MBWR | D80: 34.42079767 | E80: 5.24 | F80: 1 | G80: 4.002980232 | I80: 0.26 | J80: Helium:1 | K80: 178.3928254 | L80: 14.92273774 | M80: 5.285139454 | N80: 7.230895504 | P80: 5.240930884 | Q80: Helium:1 | R80: 714.1029536 | S80: 59.7354242 | T80: 21.15630876 | U80: 1.806378019 | V80: 0.129444548 | W80: 1.013619556 | X80: 3.671796222e-06 | Y80: 5.077927375e-05 | Z80: 0
A81: T3Ha | B81: Basis-He | C81: MBWR | D81: 50.08693953 | E81: 19.52 | F81: 1 | G81: 4.002980232 | I81: 73.31946493 | J81: Helium:1 | K81: 262.514103 | L81: 14.1255053 | M81: 5.331395973 | N81: 17.89974441 | P81: 1477.931724 | Q81: Helium:1 | R81: 1050.838765 | S81: 56.5441185 | T81: 21.34147269 | U81: 4.471604497 | V81: 14.74602473 | W81: 1.048250789 | X81: 5.201629005e-06 | Y81: 2.905979486e-05 | Z81: 0
A82: T3Hb | B82: Basis-He | C82: MBWR | D82: 50.1 | E82: 19 | F82: 1 | G82: 4.002980232 | I82: 73.31946493 | J82: Helium:1 | K82: 262.514103 | L82: 14.18440439 | M82: 5.327978367 | N82: 17.43964968 | P82: 1477.931724 | Q82: Helium:1 | R82: 1050.838765 | S82: 56.77989038 | T82: 21.32779208 | U82: 4.356666451 | V82: 15.13505595 | W82: 1.046971424 | X82: 5.197157526e-06 | Y82: 2.980081378e-05 | Z82: 0
A83: T3Hc | B83: Basis-He | C83: MBWR | D83: 50.1 | E83: 19 | F83: 1 | G83: 4.002980232 | I83: 416.4702886 | J83: Helium:1 | K83: 262.514103 | L83: 14.18424611 | M83: 5.327987343 | N83: 17.4401557 | P83: 8394.969221 | Q83: Helium:1 | R83: 1050.838765 | S83: 56.77925679 | T83: 21.32782801 | U83: 4.356792862 | V83: 85.96787003 | W83: 1.046941046 | X83: 5.197163691e-06 | Y83: 2.979998447e-05 | Z83: 0
A84: T3La | B84: Basis-He | C84: MBWR | D84: 34.42079767 | E84: 5.24 | F84: 1 | G84: 4.002980232 | I84: 416.4702886 | J84: Helium:1 | K84: 178.3928254 | L84: 14.92273774 | M84: 5.285139454 | N84: 7.230895504 | P84: 8394.969221 | Q84: Helium:1 | R84: 714.1029536 | S84: 59.7354242 | T84: 21.15630876 | U84: 1.806378019 | V84: 207.3454163 | W84: 1.013619556 | X84: 3.671796222e-06 | Y84: 5.077927375e-05 | Z84: 0
A85: T3Lb | B85: Basis-He | C85: MBWR | D85: 34.42079767 | E85: 5.24 | F85: 1 | G85: 4.002980232 | I85: 416.2102886 | J85: Helium:1 | K85: 178.3928254 | L85: 14.92273774 | M85: 5.285139454 | N85: 7.230895504 | P85: 8389.72829 | Q85: Helium:1 | R85: 714.1029536 | S85: 59.7354242 | T85: 21.15630876 | U85: 1.806378019 | V85: 207.2159718 | W85: 1.013619556 | X85: 3.671796222e-06 | Y85: 5.077927375e-05 | Z85: 0
A86: T4_Loss | B86: Basis-He | C86: MBWR | D86: 18.85113274 | E86: 5.256480657 | F86: 1 | G86: 4.002980232 | I86: 0.28 | J86: Helium:1 | K86: 94.79460159 | L86: 11.67644738 | M86: 5.524199297 | N86: 13.49161804 | P86: 5.644079413 | Q86: Helium:1 | R86: 379.4609163 | S86: 46.74058805 | T86: 22.11326059 | U86: 3.370393372 | V86: 0.07471305494 | W86: 0.9950623439 | X86: 2.414619539e-06 | Y86: 1.789718277e-05 | Z86: 0
A87: T4Ha | B87: Basis-He | C87: MBWR | D87: 27.81201581 | E87: 19.415 | F87: 1 | G87: 4.002980232 | I87: 270.28 | J87: Helium:1 | K87: 141.058651 | L87: 10.92038395 | M87: 5.665598674 | N87: 32.03610935 | P87: 5448.149228 | Q87: Helium:1 | R87: 564.6549914 | S87: 43.7140811 | T87: 22.67927949 | U87: 8.00306459 | V87: 30.37222745 | W87: 1.049112037 | X87: 3.422091194e-06 | Y87: 1.068198125e-05 | Z87: 0
A88: T4Hb | B88: Basis-He | C88: MBWR | D88: 27.80896035 | E88: 19.265 | F88: 1 | G88: 4.002980232 | I88: 270.28 | J88: Helium:1 | K88: 141.058651 | L88: 10.93735959 | M88: 5.66286549 | N88: 31.80570239 | P88: 5448.149228 | Q88: Helium:1 | R88: 564.6549914 | S88: 43.78203421 | T88: 22.66833861 | U88: 7.945505735 | V88: 30.59225003 | W88: 1.048663083 | X88: 3.418055268e-06 | Y88: 1.074667437e-05 | Z88: 0
A89: T4La | B89: Basis-He | C89: MBWR | D89: 18.85113274 | E89: 5.256480657 | F89: 1 | G89: 4.002980232 | I89: 270.28 | J89: Helium:1 | K89: 94.79460159 | L89: 11.67644738 | M89: 5.524199297 | N89: 13.49161804 | P89: 5448.149228 | Q89: Helium:1 | R89: 379.4609163 | S89: 46.74058805 | T89: 22.11326059 | U89: 3.370393372 | V89: 72.1194446 | W89: 0.9950623439 | X89: 2.414619539e-06 | Y89: 1.789718277e-05 | Z89: 0
A90: T4Lb | B90: Basis-He | C90: MBWR | D90: 18.85113274 | E90: 5.256480657 | F90: 1 | G90: 4.002980232 | I90: 270 | J90: Helium:1 | K90: 94.79460159 | L90: 11.67644738 | M90: 5.524199297 | N90: 13.49161804 | P90: 5442.505148 | Q90: Helium:1 | R90: 379.4609163 | S90: 46.74058805 | T90: 22.11326059 | U90: 3.370393372 | V90: 72.04473155 | W90: 0.9950623439 | X90: 2.414619539e-06 | Y90: 1.789718277e-05 | Z90: 0
A91: T5_Loss | B91: Basis-He | C91: MBWR | D91: 8.210319536 | E91: 8 | F91: 1 | G91: 4.002980232 | I91: 0.65 | J91: Helium:1 | K91: 23.12649722 | L91: 5.064984235 | M91: 9.165808354 | N91: 71.23167033 | P91: 13.10232721 | Q91: Helium:1 | R91: 92.57491123 | S91: 20.27503177 | T91: 36.69054965 | U91: 17.79465953 | V91: 0.03285055635 | W91: 0.6585875384 | X91: 2.601064552e-06 | Y91: 3.651556309e-06 | Z91: 0
A92: T5Ha | B92: Basis-He | C92: MBWR | D92: 10.47905772 | E92: 19.375 | F92: 1 | G92: 4.002980232 | I92: 1160.95 | J92: Helium:1 | K92: 32.81868594 | L92: 4.713617467 | M92: 6.71812025 | N92: 101.7740188 | P92: 23401.76427 | Q92: Helium:1 | R92: 131.3725511 | S92: 18.86851754 | T92: 26.89250256 | U92: 25.42456191 | V92: 41.06568701 | W92: 0.8746599978 | X92: 3.784679276e-06 | Y92: 3.718708687e-06 | Z92: 0
A93: T5Hb | B93: Basis-He | C93: MBWR | D93: 10.4752114 | E93: 19.225 | F93: 1 | G93: 4.002980232 | I93: 1160.95 | J93: Helium:1 | K93: 32.81868594 | L93: 4.727720493 | M93: 6.7398631 | N93: 101.2992924 | P93: 23401.76427 | Q93: Helium:1 | R93: 131.3725511 | S93: 18.92497168 | T93: 26.97953876 | U93: 25.3059687 | V93: 41.25813615 | W93: 0.8722758535 | X93: 3.764468498e-06 | Y93: 3.716184395e-06 | Z93: 0
A94: T5La | B94: Basis-He | C94: MBWR | D94: 8.210319536 | E94: 8 | F94: 1 | G94: 4.002980232 | I94: 1160.95 | J94: Helium:1 | K94: 23.12649722 | L94: 5.064984235 | M94: 9.165808354 | N94: 71.23167033 | P94: 23401.76427 | Q94: Helium:1 | R94: 92.57491123 | S94: 20.27503177 | T94: 36.69054965 | U94: 17.79465953 | V94: 58.6736206 | W94: 0.6585875384 | X94: 2.601064552e-06 | Y94: 3.651556309e-06 | Z94: 0
A95: T5Lb | B95: Basis-He | C95: MBWR | D95: 8.210319615 | E95: 8 | F95: 1 | G95: 4.002980232 | I95: 1160.3 | J95: Helium:1 | K95: 23.12649722 | L95: 5.064984235 | M95: 9.165808354 | N95: 71.23167033 | P95: 23388.66194 | Q95: Helium:1 | R95: 92.57491123 | S95: 20.27503177 | T95: 36.69054965 | U95: 17.79465953 | V95: 58.64077005 | W95: 0.6585875384 | X95: 2.601064552e-06 | Y95: 3.651556309e-06 | Z95: 0
A96: T6_Loss | B96: Basis-He | C96: MBWR | D96: 4.812281781 | E96: 3 | F96: 0 | G96: 4.002980232 | I96: 0.8 | J96: Helium:1 | K96: -1.890393383 | L96: 1.999310862 | M96: 5.722187652 | N96: 122.8104175 | P96: 16.12594118 | Q96: Helium:1 | R96: -7.567207344 | S96: 8.00320186 | T96: 22.90580406 | U96: 30.67974619 | V96: 0.02345077932 | W96: 0.2443946572 | X96: 0.001037562147 | Y96: 0.000844848644 | Z96: 0
A97: To Buffer | B97: Basis-He | C97: MBWR | D97: 299.995644 | E97: 19.81 | F97: 1 | G97: 4.002980232 | I97: 4.653343054 | J97: Helium:1 | K97: 1564.147465 | L97: 23.44348169 | M97: 5.191132976 | N97: 3.150720534 | P97: 93.79942047 | Q97: Helium:1 | R97: 6261.251383 | S97: 93.84379377 | T97: 20.78000268 | U97: 0.7870937029 | V97: 5.316890157 | W97: 1.009058519 | X97: 8.505374758e-05 | Y97: 0.002699501485 | Z97: 0
A98: To TS | B98: Basis-He | C98: MBWR | D98: 35.9 | E98: 19.5 | F98: 1 | G98: 4.002980232 | I98: 343.1508236 | J98: Helium:1 | K98: 186.0171279 | L98: 12.3308906 | M98: 5.475714529 | N98: 24.82386856 | P98: 6917.037497 | Q98: Helium:1 | R98: 744.622886 | S98: 49.36031132 | T98: 21.91917702 | U98: 6.201346777 | V98: 49.76432106 | W98: 1.053482704 | X98: 4.013452175e-06 | Y98: 1.616771441e-05 | Z98: 0
A99: Turbine Bearings | B99: Basis-He | C99: MBWR | D99: 299.995644 | E99: 19.81 | F99: 1 | G99: 4.002980232 | I99: 74.2 | J99: Helium:1 | K99: 1564.147465 | L99: 23.44348169 | M99: 5.191132976 | N99: 3.150720534 | P99: 1495.681044 | Q99: Helium:1 | R99: 6261.251383 | S99: 93.84379377 | T99: 20.78000268 | U99: 0.7870937029 | V99: 84.78060721 | W99: 1.009058519 | X99: 8.505374758e-05 | Y99: 0.002699501485 | Z99: 0

Sheet AUX (hidden)
A1: YES | B1: -------- | C1: 1 | D1: msoLineSolid | E1: X | F1: K | G1: Heat Exchanger | H1: Temperature | I1: Pressure | J1: Delta p | K1: Power | L1: Mass Flow | M1: Mass Enthalpy | N1: Mass Entropy | O1: Mass Heat capacity | P1: Mass Density | Q1: Molar Flow | R1: Molar Enthalpy | S1: Molar Entropy | T1: Molar Heat capacity | U1: Molar Density | V1: Volume Flow | W1: Dynamic Viscosity | X1: Kinematic viscosity | Y1: Thermal conductivity | AA1: K | AB1: =IF(AA1<>Main!C31,TRUE,FALSE) -> FALSE
A2: NO | B2: . . . . . (carré) | C2: 2 | D2: msoLineSquareDot | F2: K | G2: Turbines | H2: C | I2: kPa | J2: kPa | K2: W* | L2: kg/h | M2: kJ/g | N2: kJ/g-C | O2: kJ/g-C | P2: kg/m3 | Q2: kgmole/h | R2: kJ/gmole | S2: kJ/gmole-C | T2: kJ/gmole-C | U2: kgmole/m3 | V2: m3/h | W2: cP | X2: cSt | Y2: W/m-K | AA2: K | AB2: =IF(AA2<>Main!C32,TRUE,FALSE) -> FALSE
B3: . . . . . (rond) | C3: 3 | D3: msoLineRoundDot | F3: bar | G3: Other (Cold Box) | H3: K | I3: MPa | J3: MPa | K3: kW | L3: kg/min | M3: kJ/kg | N3: kJ/g-K | O3: kJ/g-K | P3: g/L | Q3: kgmole/min | R3: kJ/kgmole | S3: kJ/gmole-K | T3: kJ/gmole-K | U3: gmole/L | V3: m3/min | W3: mP | X3: m²/s* | Y3: Btu/hr-ft-F | AA3: bar | AB3: =IF(AA3<>Main!C33,TRUE,FALSE) -> FALSE
B4: - - - - - | C4: 4 | D4: msoLineDash | F4: mbar | G4: Other (Warm) | H4: F | I4: kg/m-s2 | J4: kg/m-s2 | K4: MW | L4: kg/s | M4: J/g | N4: kJ/kg-C | O4: kJ/kg-C | P4: g/cm3 | Q4: kgmole/s | R4: J/gmole | S4: kJ/kgmole-C | T4: kJ/kgmole-C | U4: gmole/cm3 | V4: m3/s | W4: microP | Y4: Btu/h-ft-F | AA4: mbar | AB4: =IF(AA4<>Main!C34,TRUE,FALSE) -> FALSE
B5: - . - . - | C5: 5 | D5: msoLineDashDot | F5: kW | H5: R | I5: bar | J5: bar | K5: kJ/s | L5: kg/d | M5: J/kg | N5: kJ/kg-K | O5: kJ/kg-K | P5: g/mL | Q5: m3/h_(gas) | R5: J/kgmole | S5: kJ/kgmole-K | T5: kJ/kgmole-K | U5: gmole/mL | V5: m3/d | W5: P | Y5: Kcal/m-hr-C | AA5: W* | AB5: =IF(AA5<>Main!C35,TRUE,FALSE) -> FALSE
B6: - . . - . . | C6: 6 | D6: msoLineDashDotDot | F6: g/s | I6: mbar | J6: mbar | K6: kJ/min | L6: tonne/d | M6: kcal/g | N6: J/g-C | O6: J/g-C | P6: lb/ft3 | Q6: m3/d_(gas) | R6: kcal/gmole | S6: J/gmole-C | T6: J/gmole-C | U6: lbmole/ft3 | V6: L/h | W6: Pa-s | Y6: cal/cm-s-C | AA6: g/s | AB6: =IF(AA6<>Main!C36,TRUE,FALSE) -> FALSE
B7: -- -- -- | C7: 7 | D7: msoLineLongDash | F7: kJ/kg | I7: N/m2 | J7: N/m2 | K7: kJ/h | L7: tonne/h | M7: MJ/kg | N7: J/g-K | O7: J/g-K | P7: API | Q7: Nm3/h(gas) | R7: MJ/kgmole | S7: J/gmole-K | T7: J/gmole-K | U7: Nm3/m3* | V7: L/d | W7: lbf-s/ft2 | Y7: kcal/m/°C/h* | AA7: kJ/kg | AB7: =IF(AA7<>Main!C37,TRUE,FALSE) -> FALSE
B8: -- . -- . | C8: 8 | D8: msoLineLongDashDot | F8: kJ/kg-K | I8: atm | J8: atm | K8: MJ/h | L8: tonne/year | M8: kcal/kg | N8: J/kg-C | O8: J/kg-C | P8: SG_60/60api | Q8: Nm3/d(gas) | R8: kcal/kgmole | S8: J/kgmole-C | T8: J/kgmole-C | V8: L/min | W8: lbm/s-ft | AA8: kJ/kg-K | AB8: =IF(AA8<>Main!C38,TRUE,FALSE) -> FALSE
F9: kJ/kg-K | I9: at | J9: at | K9: GJ/h | L9: g/h | M9: cal/g | N9: J/kg-K | O9: J/kg-K | P9: SG_H2O60nbs | Q9: gmole/h | R9: cal/gmole | S9: J/kgmole-K | T9: J/kgmole-K | V9: L/s | W9: lbm/h-ft | AA9: kJ/kg-K | AB9: =IF(AA9<>Main!C39,TRUE,FALSE) -> FALSE
F10: kg/m3 | I10: kg/cm2 | J10: kg/cm2 | K10: kWh/day | L10: g/min | M10: cal/kg | N10: kcal/g-C | O10: kcal/g-C | P10: SG_H2O4 | Q10: gmole/min | R10: cal/kgmole | S10: kcal/gmol-C | T10: kcal/gmol-C | V10: mL/h | W10: slug/h-ft | AA10: kg/m3 | AB10: =IF(AA10<>Main!C40,TRUE,FALSE) -> FALSE
F11: Nm3/h* | I11: psia | J11: psia | K11: MWh/day | L11: g/s | M11: Btu/lb | N11: kcal/g-K | O11: kcal/g-K | Q11: gmole/s | R11: Btu/lbmole | S11: kcal/gmol-K | T11: kcal/gmol-K | V11: mL/min | W11: poundals/ft2 | AA11: Nm3/h* | AB11: =IF(AA11<>Main!C41,TRUE,FALSE) -> FALSE
F12: J/mol* | I12: lbf/ft2 | J12: lbf/ft2 | K12: kcal/h | L12: lb/hr | N12: kcal/kg-C | O12: kcal/kg-C | Q12: lbmole/hr | R12: kkcal/kgmole | S12: kcal/kgmol-C | T12: kcal/kgmol-C | V12: mL/s | AA12: J/mol* | AB12: =IF(AA12<>Main!C42,TRUE,FALSE) -> FALSE
F13: kJ/kgmole-C | I13: torr | J13: torr | K13: cal/h | L13: Mlb/hr | N13: kcal/kg-K | O13: kcal/kg-K | Q13: lbmole/h | R13: Btu/SCF | S13: kcal/kgmol-K | T13: kcal/kgmol-K | V13: cm3/h | AA13: kJ/kgmole-C | AB13: =IF(AA13<>Main!C43,TRUE,FALSE) -> FALSE
F14: kJ/kgmole-C | I14: mmHg(0C) | J14: mmHg(0C) | K14: kcal/min | L14: Mlb/day | N14: cal/g-C | O14: cal/g-C | Q14: MMSCFH | R14: Btu/MSCF | S14: cal/gmole-C | T14: cal/gmole-C | V14: cm3/min | AA14: kJ/kgmole-C | AB14: =IF(AA14<>Main!C44,TRUE,FALSE) -> FALSE
F15: kgmole/m3 | I15: inHg(32F) | J15: inHg(32F) | K15: cal/min | L15: MMlb/day | N15: cal/g-K | O15: cal/g-K | Q15: MMSCFD | R15: Btu/MMSCF | S15: cal/gmole-K | T15: cal/gmole-K | V15: cm3/s | AA15: kgmole/m3 | AB15: =IF(AA15<>Main!C45,TRUE,FALSE) -> FALSE
F16: m3/h | I16: inHg(60F) | J16: inHg(60F) | K16: kcal/s | L16: lb/day | N16: cal/kg-C | O16: cal/kg-C | Q16: kscfd | R16: kWh/Nm3* | S16: cal/kgmole-C | T16: cal/kgmole-C | V16: barrel/day | AA16: m3/h | AB16: =IF(AA16<>Main!C46,TRUE,FALSE) -> FALSE
F17: Pa-s | I17: cmH2O(4C) | J17: cmH2O(4C) | K17: cal/s | L17: klb/day | N17: cal/kg-K | O17: cal/kg-K | Q17: MSCFD | R17: kcal/Nm3* | S17: cal/kgmole-K | T17: cal/kgmole-K | V17: kbpd | AA17: Pa-s | AB17: =IF(AA17<>Main!C47,TRUE,FALSE) -> FALSE
F18: m²/s* | I18: inH2O(60F) | J18: inH2O(60F) | K18: Btu/hr | L18: tn(short)/h | N18: Btu/lb-F | O18: Btu/lb-F | Q18: MSCFH | R18: J/mol* | S18: Btu/lbmole-F | T18: Btu/lbmole-F | V18: barrel/hr | AA18: m²/s* | AB18: =IF(AA18<>Main!C48,TRUE,FALSE) -> FALSE
F19: W/m-K | I19: kPag | K19: Btu/h | L19: tn(short)/d | N19: Btu/lb-F | O19: Btu/lb-F | Q19: scfd | S19: Btu/lbmole-F | T19: Btu/lbmole-F | V19: Mgal/day | AA19: W/m-K | AB19: =IF(AA19<>Main!C49,TRUE,FALSE) -> FALSE
I20: MPag | K20: Btu(tc)/hr | L20: tn(long)/h | N20: Btu/lb-R | O20: Btu/lb-R | Q20: Nm3/h* | S20: Btu/lbmole-R | T20: Btu/lbmole-R | V20: MMgal/day
I21: bar_g | K21: MMBtu/hr | L21: tn(long)/d | S21: kcal/Nm3/°C* | T21: kcal/Nm3/°C* | V21: USGPM
I22: mbar_g | K22: MMBtu(tc)/hr | L22: kilo ton(short)/d | S22: J/mol.K* | T22: J/mol.K* | V22: USGPH
I23: N/m2_g | K23: MMBtu/day | L23: kilo ton(long)/d | V23: ft3/hr
I24: atm_g | K24: MMMBtu/day | V24: ft3/day
I25: ate | K25: hp | V25: ft3/d
I26: kg/cm2_g | K26: Mkcal/h
I27: psig
I28: lbf/ft2_g
I29: torr_g
I30: mmHg(0C)_g
I31: inHg(32F)_g
I32: inHg(60F)_g
I33: cmH2O(4C)_g
I34: inH2O(60F)_g

Sheet DS_Turb_Template (hidden)
E2: Job nbr : | F2: XXX | H2: Document number
E3: Name : | F3: ZZZZ
H4: XXX-DS-YYY
A5: PROCESS | H5: Reference
A6: DATA | C6: EXPANDER
B9: Type:
B10: Size:
G11: Run :
A12: OPERATING CONDITIONS
C13: Units
A14: Fluid components | C14: molar %
A20: Flowrate | C20: g/s
A21: Inlet pressure | C21: bar abs
A22: Inlet temperature | C22: K
A23: Outlet pressure | C23: bar abs
A24: Outlet temperature | C24: K
A25: Liquid at outlet | C25: %
A26: Adiabatic efficiency | B26: expected | C26: %
B27: guaranteed | C27: %
A28: Refrigeration power | B28: expected | C28: W
B29: guaranteed | C29: W
A30: Rotation speed | C30: Hz
A31: Wheel diameter | C31: mm
A32: Process Gas Losses | C32: g/s
A34: Water flow rate | C34: m3/h
A35: Utility Gas Supply Pressure | C35: bara
A36: Utility Gas Return Pressure | C36: bara
A37: Utility Gas flow rate | C37: g/s
A39: Vendor Tolerances on Guarantee:
A40: NOMINAL case guaranteed when operating within the following
B41: Flow | D41: +/- 5% from GUARANTEE
B42: Turbine Isentropic Eff. | D42: No Negative Tolerance
A45: Notes :
A46: Utility Gas has same composition than process gas
A48: Revision | B48: DATE | C48: BY | E48: VISA | F48: CHECKED | H48: VISA | I48: Page

Sheet DS_HX_Template (hidden)
E2: Job nbr : | F2: XXX | H2: Document number
E3: Name : | F3: ZZZZ
H4: XXX-DS-YYY
A5: PROCESS | H5: Reference
A6: DATA | C6: PLATE-FIN HEAT EXCHANGER
H7: Exch_Spec_HX-01.xls
B9: Type : | C9: Horizontal/Vertical Aluminum brazed PFHE
G11: Run :
A12: OPERATING CONDITIONS
A13: Fluid | C13: Units
A14: Nozzle name | B14: in
B15: out
A16: Fluid components | C16: molar %
A21: Liquid | B21: inlet | C21: %
A22: fraction | B22: outlet | C22: %
A23: Flowrate | C23: =_q_u -> g/s
A24: Maximum flowrate | C24: =_q_u -> g/s
A25: Operating | B25: inlet | C25: =_p_u -> bar
A26: pressure | B26: outlet | C26: =_p_u -> bar
A27: Operating | B27: inlet | C27: =_T_u -> K
A28: temperat. | B28: outlet | C28: =_T_u -> K
A29: Pressure | B29: expected | C29: mbar
A30: drop | B30: guaranteed | C30: mbar
A31: Duty | C31: =_Pow_u -> W*
G32: Heat leak | I32: =_Pow_u -> W*
A33: Design pressure | C33: bar g
A34: Design temperature | C34: °C
A36: CORES CHARACTERISTICS
A37: Exchange | B37: type
A38: fins | B38: ht x thick | C38: mm x mm
B39: density | C39: FPI
A40: Distribution | B40: type
A41: fins | B41: ht x thick | C41: mm x mm
B42: density | C42: FPI
A43: Distributors | B43: inlet | C43: mm
A44: length | B44: outlet | C44: mm
A45: Number of layers
A46: Effective width | C46: m
A47: Effective length | C47: m
A48: Headers | B48: inlet | C48: ND
A49: ND | B49: outlet | C49: ND
A50: Nozzles | B50: inlet | C50: ND
A51: ND | B51: outlet | C51: ND
A52: Manifolds | B52: inlet
A53: ND | B53: outlet
A54: Cores number | E54: Thickness | F54: Parting sheets : | I54: mm
A55: Cores dimensions | C55: Width | F55: Side sheets : | I55: mm
A56: m | C56: Length | E56: Stacking Arrangement :
C57: Height
A59: Notes :
A64: Revision | B64: DATE | C64: BY | E64: VISA | F64: CHECKED | H64: VISA | I64: Page

Sheet TSHXTable (hidden)
A1: Heat Exchanger text boxes
A3: HX Core | D3: HP | E3: MP | F3: LP | G3: SP
A4: 1 | B4: p | C4: bar | D4: 12.0471 | E4: 3.2965 | F4: 1.088829974 | G4: 0.21637
B5: T | C5: K | D5: 313 | E5: 310.8537249 | F5: 310.8537375 | G5: 310.8537377
B6: h | C6: kJ/kg | D6: 1629.15375 | E6: 1615.191513 | F6: 1614.480303 | G6: 1614.199221
B7: m | C7: g/s | D7: 734.4433454 | E7: 456.9070274 | F7: 205.1616751 | G7: 61.4
A8: 2 | B8: p | C8: bar | D8: 11.877 | E8: 3.3751 | F8: 1.139229974 | G8: 0.24407
B9: T | C9: K | D9: 65.61575682 | E9: 63.03052141 | F9: 63.03052138 | G9: 63.03052129
B10: h | C10: kJ/kg | D10: 343.1504098 | E10: 327.9428026 | F10: 327.5096826 | G10: 327.3365298
B11: m | C11: g/s | D11: 597.6406538 | E11: 456.9070274 | F11: 205.1616751 | G11: 61.4
A12: 3 | B12: p | C12: bar | D12: 11.8462 | E12: 3.4039 | F12: 1.157929974 | G12: 0.25427
B13: T | C13: K | D13: 37.97265986 | E13: 37.84904758 | F13: 37.84904758 | G13: 37.84904758
B14: h | C14: kJ/kg | D14: 197.1630222 | E14: 196.4922176 | F14: 196.5163017 | G14: 196.5288716
B15: m | C15: g/s | D15: 475.7588361 | E15: 172.4438803 | F15: 205.1616751 | G15: 61.4
